Workbook

Sheet Sheet1
R1: ml | S1: dl | T1: l | U1: t | V1: T | W1: floz | X1: oz | Y1: c | Z1: pt | AA1: qt | AB1: gal | AC1: g | AD1: lb
B2: Volume-to-weight calculator by Martin Lersch (v.2, January 2014) | K2: Optional | R2: 1 | S2: =R2*100 -> 100 | T2: 1000 | U2: 5 | V2: 15 | W2: =Y2/8 -> 29.57352956 | X2: 28.3495 | Y2: =R2*236.5882365 -> 236.5882365 | Z2: =Y2*2 -> 473.176473 | AA2: =Z2*2 -> 946.352946 | AB2: =AA2*4 -> 3785.411784 | AC2: 1 | AD2: 453
B3: Convert US customary units to grams based on densities | K3: scaling: | L3: 0.7 | R3: g/ml | S3: g/dl | T3: g/l | U3: g/t | V3: g/T | W3: g/floz | X3: g/oz | Y3: g/cup | Z3: g/pt | AA3: g/qt | AB3: g/gal | AD3: g/lb
P4: allspice, ground | R4: 0.42 | S4: =$R4*S$2 -> 42 | T4: =$R4*T$2 -> 420 | U4: =$R4*U$2 -> 2.1 | V4: =$R4*V$2 -> 6.3 | W4: =$R4*W$2 -> 12.42088242 | X4: =$X$2 -> 28.3495 | Y4: =$R4*Y$2 -> 99.36705933 | Z4: =$R4*Z$2 -> 198.7341187 | AA4: =$R4*AA$2 -> 397.4682373 | AB4: =$R4*AB$2 -> 1589.872949 | AC4: =$AC$2 -> 1 | AD4: =$AD$2 -> 453
P5: almonds, ground | R5: 0.36 | S5: =$R5*S$2 -> 36 | T5: =$R5*T$2 -> 360 | U5: =$R5*U$2 -> 1.8 | V5: =$R5*V$2 -> 5.4 | W5: =$R5*W$2 -> 10.64647064 | X5: =$X$2 -> 28.3495 | Y5: =$R5*Y$2 -> 85.17176514 | Z5: =$R5*Z$2 -> 170.3435303 | AA5: =$R5*AA$2 -> 340.6870606 | AB5: =$R5*AB$2 -> 1362.748242 | AC5: =$AC$2 -> 1 | AD5: =$AD$2 -> 453
B6: Amount | C6: Unit * | D6: Ingredient | F6: Amount | G6: Unit | H6: % | I6: Scaled amounts | K6: Amount | L6: Unit | P6: almonds, sliced | R6: 0.3888612611 | S6: =$R6*S$2 -> 38.88612611 | T6: =$R6*T$2 -> 388.8612611 | U6: =$R6*U$2 -> 1.944306305 | V6: =$R6*V$2 -> 5.832918916 | W6: =$R6*W$2 -> 11.5 | X6: =$X$2 -> 28.3495 | Y6: =$R6*Y$2 -> 92 | Z6: =$R6*Z$2 -> 184 | AA6: =$R6*AA$2 -> 368 | AB6: =$R6*AB$2 -> 1472 | AC6: =$AC$2 -> 1 | AD6: =$AD$2 -> 453
B7: 1 | C7: c | D7: blueberries, raw | E7: =B7*VLOOKUP(D7,$P:$AD,IF(C7="",2,MATCH(TRUE,EXACT($P$1:$AD$1,C7),0)),FALSE) -> 148 | F7: =IFERROR(MROUND(E7,IF(E7<1,0.01,IF(E7<5,0.1,IF(E7<10,0.5,IF(E7<50,1,IF(E7<200,5,IF(E7<500,10,25))))))),"") -> 150 | G7: g | H7: =IFERROR(F7/$F$25,"") -> 0.04082743604 | I7: =F7*$L$3 -> 105 | K7: =IFERROR(MROUND(I7,IF(I7<1,0.01,IF(I7<5,0.1,IF(I7<10,0.5,IF(I7<50,1,IF(I7<200,5,IF(I7<500,10,25))))))),"") -> 105 | L7: g | P7: almonds, whole | R7: 0.66 | S7: =$R7*S$2 -> 66 | T7: =$R7*T$2 -> 660 | U7: =$R7*U$2 -> 3.3 | V7: =$R7*V$2 -> 9.9 | W7: =$R7*W$2 -> 19.51852951 | X7: =$X$2 -> 28.3495 | Y7: =$R7*Y$2 -> 156.1482361 | Z7: =$R7*Z$2 -> 312.2964722 | AA7: =$R7*AA$2 -> 624.5929444 | AB7: =$R7*AB$2 -> 2498.371777 | AC7: =$AC$2 -> 1 | AD7: =$AD$2 -> 453
B8: 1 | C8: c | D8: sugar | E8: =B8*VLOOKUP(D8,$P:$AD,IF(C8="",2,MATCH(TRUE,EXACT($P$1:$AD$1,C8),0)),FALSE) -> 205.8317658 | F8: =IFERROR(MROUND(E8,IF(E8<1,0.01,IF(E8<5,0.1,IF(E8<10,0.5,IF(E8<50,1,IF(E8<200,5,IF(E8<500,10,25))))))),"") -> 210 | G8: g | H8: 0.05715841045 | I8: 147 | K8: =IFERROR(MROUND(I8,IF(I8<1,0.01,IF(I8<5,0.1,IF(I8<10,0.5,IF(I8<50,1,IF(I8<200,5,IF(I8<500,10,25))))))),"") -> 145 | L8: g | P8: anchovies | R8: 1.02 | S8: =$R8*S$2 -> 102 | T8: =$R8*T$2 -> 1020 | U8: =$R8*U$2 -> 5.1 | V8: =$R8*V$2 -> 15.3 | W8: =$R8*W$2 -> 30.16500015 | X8: =$X$2 -> 28.3495 | Y8: =$R8*Y$2 -> 241.3200012 | Z8: =$R8*Z$2 -> 482.6400025 | AA8: =$R8*AA$2 -> 965.2800049 | AB8: =$R8*AB$2 -> 3861.12002 | AC8: =$AC$2 -> 1 | AD8: =$AD$2 -> 453
B9: 14 | C9: oz | D9: flour | E9: =B9*VLOOKUP(D9,$P:$AD,IF(C9="",2,MATCH(TRUE,EXACT($P$1:$AD$1,C9),0)),FALSE) -> 396.893 | F9: 400 | G9: g | H9: 0.1088731628 | I9: 280 | K9: 280 | L9: g | P9: anise seed, whole | R9: 0.4466666667 | S9: =$R9*S$2 -> 44.66666667 | T9: =$R9*T$2 -> 446.6666667 | U9: =$R9*U$2 -> 2.233333333 | V9: =$R9*V$2 -> 6.7 | W9: =$R9*W$2 -> 13.20950987 | X9: =$X$2 -> 28.3495 | Y9: =$R9*Y$2 -> 105.676079 | Z9: =$R9*Z$2 -> 211.3521579 | AA9: =$R9*AA$2 -> 422.7043159 | AB9: =$R9*AB$2 -> 1690.817264 | AC9: =$AC$2 -> 1 | AD9: =$AD$2 -> 453
B10: 1.5 | C10: c | D10: milk | E10: =B10*VLOOKUP(D10,$P:$AD,IF(C10="",2,MATCH(TRUE,EXACT($P$1:$AD$1,C10),0)),FALSE) -> 354.8823547 | F10: 350 | G10: g | H10: 0.09526401742 | I10: 245 | K10: 250 | L10: g | P10: apples, dried | R10: 0.38 | S10: =$R10*S$2 -> 38 | T10: =$R10*T$2 -> 380 | U10: =$R10*U$2 -> 1.9 | V10: =$R10*V$2 -> 5.7 | W10: =$R10*W$2 -> 11.23794123 | X10: =$X$2 -> 28.3495 | Y10: =$R10*Y$2 -> 89.90352987 | Z10: =$R10*Z$2 -> 179.8070597 | AA10: =$R10*AA$2 -> 359.6141195 | AB10: =$R10*AB$2 -> 1438.456478 | AC10: =$AC$2 -> 1 | AD10: =$AD$2 -> 453
B11: 1 | C11: t | D11: vanilla extract | E11: =B11*VLOOKUP(D11,$P:$AD,IF(C11="",2,MATCH(TRUE,EXACT($P$1:$AD$1,C11),0)),FALSE) -> 4.4 | F11: 4.4 | G11: g | H11: 0.00119760479 | I11: 3.08 | K11: 3.1 | L11: g | P11: apples, sliced | R11: 0.76 | S11: =$R11*S$2 -> 76 | T11: =$R11*T$2 -> 760 | U11: =$R11*U$2 -> 3.8 | V11: =$R11*V$2 -> 11.4 | W11: =$R11*W$2 -> 22.47588247 | X11: =$X$2 -> 28.3495 | Y11: =$R11*Y$2 -> 179.8070597 | Z11: =$R11*Z$2 -> 359.6141195 | AA11: =$R11*AA$2 -> 719.228239 | AB11: =$R11*AB$2 -> 2876.912956 | AC11: =$AC$2 -> 1 | AD11: =$AD$2 -> 453
B12: 1.5 | C12: t | D12: baking powder | E12: =B12*VLOOKUP(D12,$P:$AD,IF(C12="",2,MATCH(TRUE,EXACT($P$1:$AD$1,C12),0)),FALSE) -> 5.7 | F12: 5.5 | G12: g | H12: 0.001497005988 | I12: 3.85 | K12: 3.8 | L12: g | P12: apricots, dried | R12: 0.64 | S12: =$R12*S$2 -> 64 | T12: =$R12*T$2 -> 640 | U12: =$R12*U$2 -> 3.2 | V12: =$R12*V$2 -> 9.6 | W12: =$R12*W$2 -> 18.92705892 | X12: =$X$2 -> 28.3495 | Y12: =$R12*Y$2 -> 151.4164714 | Z12: =$R12*Z$2 -> 302.8329427 | AA12: =$R12*AA$2 -> 605.6658854 | AB12: =$R12*AB$2 -> 2422.663542 | AC12: =$AC$2 -> 1 | AD12: =$AD$2 -> 453
B13: 5 | D13: egg | E13: =B13*VLOOKUP(D13,$P:$AD,IF(C13="",2,MATCH(TRUE,EXACT($P$1:$AD$1,C13),0)),FALSE) -> 302.5 | F13: 300 | G13: g | H13: 0.08165487207 | I13: 210 | K13: 210 | L13: g | P13: arrowroot | R13: 0.95 | S13: =$R13*S$2 -> 95 | T13: =$R13*T$2 -> 950 | U13: =$R13*U$2 -> 4.75 | V13: =$R13*V$2 -> 14.25 | W13: =$R13*W$2 -> 28.09485308 | X13: =$X$2 -> 28.3495 | Y13: =$R13*Y$2 -> 224.7588247 | Z13: =$R13*Z$2 -> 449.5176493 | AA13: =$R13*AA$2 -> 899.0352987 | AB13: =$R13*AB$2 -> 3596.141195 | AC13: =$AC$2 -> 1 | AD13: =$AD$2 -> 453
B14: 2 | D14: egg yolk | E14: =B14*VLOOKUP(D14,$P:$AD,IF(C14="",2,MATCH(TRUE,EXACT($P$1:$AD$1,C14),0)),FALSE) -> 40 | F14: 40 | G14: g | H14: 0.01088731628 | I14: 28 | K14: 28 | L14: g | P14: arrowroot flour | R14: 0.5410243632 | S14: =$R14*S$2 -> 54.10243632 | T14: =$R14*T$2 -> 541.0243632 | U14: =$R14*U$2 -> 2.705121816 | V14: =$R14*V$2 -> 8.115365448 | W14: =$R14*W$2 -> 16 | X14: =$X$2 -> 28.3495 | Y14: =$R14*Y$2 -> 128 | Z14: =$R14*Z$2 -> 256 | AA14: =$R14*AA$2 -> 512 | AB14: =$R14*AB$2 -> 2048 | AC14: =$AC$2 -> 1 | AD14: =$AD$2 -> 453
B15: 2 | C15: qt | D15: water | E15: =B15*VLOOKUP(D15,$P:$AD,IF(C15="",2,MATCH(TRUE,EXACT($P$1:$AD$1,C15),0)),FALSE) -> 1892.705892 | F15: 1900 | G15: g | H15: 0.5171475231 | I15: 1330 | K15: 1325 | L15: g | P15: bacon fat | R15: 0.76 | S15: =$R15*S$2 -> 76 | T15: =$R15*T$2 -> 760 | U15: =$R15*U$2 -> 3.8 | V15: =$R15*V$2 -> 11.4 | W15: =$R15*W$2 -> 22.47588247 | X15: =$X$2 -> 28.3495 | Y15: =$R15*Y$2 -> 179.8070597 | Z15: =$R15*Z$2 -> 359.6141195 | AA15: =$R15*AA$2 -> 719.228239 | AB15: =$R15*AB$2 -> 2876.912956 | AC15: =$AC$2 -> 1 | AD15: =$AD$2 -> 453
B16: 5 | C16: ml | D16: rum (40%) | E16: =B16*VLOOKUP(D16,$P:$AD,IF(C16="",2,MATCH(TRUE,EXACT($P$1:$AD$1,C16),0)),FALSE) -> 4.7 | F16: =IFERROR(MROUND(E16,IF(E16<1,0.01,IF(E16<5,0.1,IF(E16<10,0.5,IF(E16<50,1,IF(E16<200,5,IF(E16<500,10,25))))))),"") -> 4.7 | G16: g | H16: =IFERROR(F16/$F$25,"") -> 0.001279259662 | I16: 3.29 | K16: 3.3 | L16: g | P16: baking powder | R16: 0.76 | S16: =$R16*S$2 -> 76 | T16: =$R16*T$2 -> 760 | U16: =$R16*U$2 -> 3.8 | V16: =$R16*V$2 -> 11.4 | W16: =$R16*W$2 -> 22.47588247 | X16: =$X$2 -> 28.3495 | Y16: =$R16*Y$2 -> 179.8070597 | Z16: =$R16*Z$2 -> 359.6141195 | AA16: =$R16*AA$2 -> 719.228239 | AB16: =$R16*AB$2 -> 2876.912956 | AC16: =$AC$2 -> 1 | AD16: =$AD$2 -> 453
B17: 12 | C17: g | D17: yeast, active dry | E17: =B17*VLOOKUP(D17,$P:$AD,IF(C17="",2,MATCH(TRUE,EXACT($P$1:$AD$1,C17),0)),FALSE) -> 12 | F17: 12 | G17: g | H17: 0.003266194883 | I17: 8.4 | K17: 8.5 | L17: g | P17: baking soda | R17: 0.87 | S17: =$R17*S$2 -> 87 | T17: =$R17*T$2 -> 870 | U17: =$R17*U$2 -> 4.35 | V17: =$R17*V$2 -> 13.05 | W17: =$R17*W$2 -> 25.72897072 | X17: =$X$2 -> 28.3495 | Y17: =$R17*Y$2 -> 205.8317658 | Z17: =$R17*Z$2 -> 411.6635315 | AA17: =$R17*AA$2 -> 823.327063 | AB17: =$R17*AB$2 -> 3293.308252 | AC17: =$AC$2 -> 1 | AD17: =$AD$2 -> 453
B18: 1 | D18: butter, stick | E18: =B18*VLOOKUP(D18,$P:$AD,IF(C18="",2,MATCH(TRUE,EXACT($P$1:$AD$1,C18),0)),FALSE) -> 114.75 | F18: 115 | G18: g | H18: 0.0313010343 | I18: 80.5 | K18: 80 | L18: g | P18: bamboo shoots | R18: 1.14 | S18: =$R18*S$2 -> 114 | T18: =$R18*T$2 -> 1140 | U18: =$R18*U$2 -> 5.7 | V18: =$R18*V$2 -> 17.1 | W18: =$R18*W$2 -> 33.7138237 | X18: =$X$2 -> 28.3495 | Y18: =$R18*Y$2 -> 269.7105896 | Z18: =$R18*Z$2 -> 539.4211792 | AA18: =$R18*AA$2 -> 1078.842358 | AB18: =$R18*AB$2 -> 4315.369434 | AC18: =$AC$2 -> 1 | AD18: =$AD$2 -> 453
B19: 0.5 | C19: c | D19: walnuts, chopped | E19: =B19*VLOOKUP(D19,$P:$AD,IF(C19="",2,MATCH(TRUE,EXACT($P$1:$AD$1,C19),0)),FALSE) -> 57.96411794 | F19: 60 | G19: g | H19: 0.01633097441 | I19: 42 | K19: 42 | L19: g | P19: bananas, mashed | R19: 0.97 | S19: =$R19*S$2 -> 97 | T19: =$R19*T$2 -> 970 | U19: =$R19*U$2 -> 4.85 | V19: =$R19*V$2 -> 14.55 | W19: =$R19*W$2 -> 28.68632368 | X19: =$X$2 -> 28.3495 | Y19: =$R19*Y$2 -> 229.4905894 | Z19: =$R19*Z$2 -> 458.9811788 | AA19: =$R19*AA$2 -> 917.9623576 | AB19: =$R19*AB$2 -> 3671.84943 | AC19: =$AC$2 -> 1 | AD19: =$AD$2 -> 453
B20: 0.5 | C20: c | D20: raisins, seedless, not packed | E20: =B20*VLOOKUP(D20,$P:$AD,IF(C20="",2,MATCH(TRUE,EXACT($P$1:$AD$1,C20),0)),FALSE) -> 72.5 | F20: 75 | G20: g | H20: 0.02041371802 | I20: 52.5 | K20: 55 | L20: g | P20: bananas, sliced | R20: 0.76 | S20: =$R20*S$2 -> 76 | T20: =$R20*T$2 -> 760 | U20: =$R20*U$2 -> 3.8 | V20: =$R20*V$2 -> 11.4 | W20: =$R20*W$2 -> 22.47588247 | X20: =$X$2 -> 28.3495 | Y20: =$R20*Y$2 -> 179.8070597 | Z20: =$R20*Z$2 -> 359.6141195 | AA20: =$R20*AA$2 -> 719.228239 | AB20: =$R20*AB$2 -> 2876.912956 | AC20: =$AC$2 -> 1 | AD20: =$AD$2 -> 453
B21: 1 | C21: T | D21: wine, red | E21: =B21*VLOOKUP(D21,$P:$AD,IF(C21="",2,MATCH(TRUE,EXACT($P$1:$AD$1,C21),0)),FALSE) -> 14.85 | F21: 15 | G21: g | H21: 0.004082743604 | I21: 10.5 | K21: 11 | L21: g | P21: barley flour | R21: 0.62555942 | S21: =$R21*S$2 -> 62.555942 | T21: =$R21*T$2 -> 625.55942 | U21: =$R21*U$2 -> 3.1277971 | V21: =$R21*V$2 -> 9.3833913 | W21: =$R21*W$2 -> 18.5 | X21: =$X$2 -> 28.3495 | Y21: =$R21*Y$2 -> 148 | Z21: =$R21*Z$2 -> 296 | AA21: =$R21*AA$2 -> 592 | AB21: =$R21*AB$2 -> 2368 | AC21: =$AC$2 -> 1 | AD21: =$AD$2 -> 453
B22: 1 | C22: floz | D22: vodka, 40% | E22: =B22*VLOOKUP(D22,$P:$AD,IF(C22="",2,MATCH(TRUE,EXACT($P$1:$AD$1,C22),0)),FALSE) -> 27.79911779 | F22: 28 | G22: g | H22: =IFERROR(F22/$F$25,"") -> 0.007621121394 | I22: 19.6 | K22: 20 | L22: g | P22: barley, uncooked | R22: 0.78 | S22: =$R22*S$2 -> 78 | T22: =$R22*T$2 -> 780 | U22: =$R22*U$2 -> 3.9 | V22: =$R22*V$2 -> 11.7 | W22: =$R22*W$2 -> 23.06735306 | X22: =$X$2 -> 28.3495 | Y22: =$R22*Y$2 -> 184.5388245 | Z22: =$R22*Z$2 -> 369.0776489 | AA22: =$R22*AA$2 -> 738.1552979 | AB22: =$R22*AB$2 -> 2952.621192 | AC22: =$AC$2 -> 1 | AD22: =$AD$2 -> 453
B23: 1 | C23: t | D23: nutmeg, ground | E23: =B23*VLOOKUP(D23,$P:$AD,IF(C23="",2,MATCH(TRUE,EXACT($P$1:$AD$1,C23),0)),FALSE) -> 2.333333333 | F23: 2.3 | G23: g | H23: =IFERROR(F23/$F$25,"") -> 0.0006260206859 | I23: 1.61 | K23: 1.6 | L23: g | P23: basil, dried | R23: 0.11 | S23: =$R23*S$2 -> 11 | T23: =$R23*T$2 -> 110 | U23: =$R23*U$2 -> 0.55 | V23: =$R23*V$2 -> 1.65 | W23: =$R23*W$2 -> 3.253088252 | X23: =$X$2 -> 28.3495 | Y23: =$R23*Y$2 -> 26.02470601 | Z23: =$R23*Z$2 -> 52.04941203 | AA23: =$R23*AA$2 -> 104.0988241 | AB23: =$R23*AB$2 -> 416.3952962 | AC23: =$AC$2 -> 1 | AD23: =$AD$2 -> 453
B24: 1 | C24: t | D24: allspice, ground | E24: =B24*VLOOKUP(D24,$P:$AD,IF(C24="",2,MATCH(TRUE,EXACT($P$1:$AD$1,C24),0)),FALSE) -> 2.1 | F24: 2.1 | G24: g | H24: =IFERROR(F24/$F$25,"") -> 0.0005715841045 | I24: 1.47 | K24: 1.5 | L24: g | P24: basil, dried leaves | R24: 0.14 | S24: =$R24*S$2 -> 14 | T24: =$R24*T$2 -> 140 | U24: =$R24*U$2 -> 0.7 | V24: =$R24*V$2 -> 2.1 | W24: =$R24*W$2 -> 4.140294139 | X24: =$X$2 -> 28.3495 | Y24: =$R24*Y$2 -> 33.12235311 | Z24: =$R24*Z$2 -> 66.24470622 | AA24: =$R24*AA$2 -> 132.4894124 | AB24: =$R24*AB$2 -> 529.9576498 | AC24: =$AC$2 -> 1 | AD24: =$AD$2 -> 453
F25: =SUM(F7:F24) -> 3674 | G25: g | H25: =SUM(H7:H24) -> 1 | K25: =SUM(K7:K24) -> 2572.8 | L25: g | P25: bay leaf, crumbled | R25: 0.12 | S25: =$R25*S$2 -> 12 | T25: =$R25*T$2 -> 120 | U25: =$R25*U$2 -> 0.6 | V25: =$R25*V$2 -> 1.8 | W25: =$R25*W$2 -> 3.548823548 | X25: =$X$2 -> 28.3495 | Y25: =$R25*Y$2 -> 28.39058838 | Z25: =$R25*Z$2 -> 56.78117676 | AA25: =$R25*AA$2 -> 113.5623535 | AB25: =$R25*AB$2 -> 454.2494141 | AC25: =$AC$2 -> 1 | AD25: =$AD$2 -> 453
P26: beans, dried | R26: 0.85 | S26: =$R26*S$2 -> 85 | T26: =$R26*T$2 -> 850 | U26: =$R26*U$2 -> 4.25 | V26: =$R26*V$2 -> 12.75 | W26: =$R26*W$2 -> 25.13750013 | X26: =$X$2 -> 28.3495 | Y26: =$R26*Y$2 -> 201.100001 | Z26: =$R26*Z$2 -> 402.200002 | AA26: =$R26*AA$2 -> 804.4000041 | AB26: =$R26*AB$2 -> 3217.600016 | AC26: =$AC$2 -> 1 | AD26: =$AD$2 -> 453
P27: beef, cooked | R27: 0.97 | S27: =$R27*S$2 -> 97 | T27: =$R27*T$2 -> 970 | U27: =$R27*U$2 -> 4.85 | V27: =$R27*V$2 -> 14.55 | W27: =$R27*W$2 -> 28.68632368 | X27: =$X$2 -> 28.3495 | Y27: =$R27*Y$2 -> 229.4905894 | Z27: =$R27*Z$2 -> 458.9811788 | AA27: =$R27*AA$2 -> 917.9623576 | AB27: =$R27*AB$2 -> 3671.84943 | AC27: =$AC$2 -> 1 | AD27: =$AD$2 -> 453
B28: *) Allowed units: | P28: beef, raw | R28: 0.93 | S28: =$R28*S$2 -> 93 | T28: =$R28*T$2 -> 930 | U28: =$R28*U$2 -> 4.65 | V28: =$R28*V$2 -> 13.95 | W28: =$R28*W$2 -> 27.50338249 | X28: =$X$2 -> 28.3495 | Y28: =$R28*Y$2 -> 220.0270599 | Z28: =$R28*Z$2 -> 440.0541199 | AA28: =$R28*AA$2 -> 880.1082398 | AB28: =$R28*AB$2 -> 3520.432959 | AC28: =$AC$2 -> 1 | AD28: =$AD$2 -> 453
B29: US volume units: t, T, floz, c, pt, qt, gal | P29: biscuit mix (Bisquick) | R29: 0.55 | S29: =$R29*S$2 -> 55 | T29: =$R29*T$2 -> 550 | U29: =$R29*U$2 -> 2.75 | V29: =$R29*V$2 -> 8.25 | W29: =$R29*W$2 -> 16.26544126 | X29: =$X$2 -> 28.3495 | Y29: =$R29*Y$2 -> 130.1235301 | Z29: =$R29*Z$2 -> 260.2470602 | AA29: =$R29*AA$2 -> 520.4941203 | AB29: =$R29*AB$2 -> 2081.976481 | AC29: =$AC$2 -> 1 | AD29: =$AD$2 -> 453
B30: US weight units: oz, lb | P30: blackberries, raw | R30: 0.6086524086 | S30: =$R30*S$2 -> 60.86524086 | T30: =$R30*T$2 -> 608.6524086 | U30: =$R30*U$2 -> 3.043262043 | V30: =$R30*V$2 -> 9.129786129 | W30: =$R30*W$2 -> 18 | X30: =$X$2 -> 28.3495 | Y30: =$R30*Y$2 -> 144 | Z30: =$R30*Z$2 -> 288 | AA30: =$R30*AA$2 -> 576 | AB30: =$R30*AB$2 -> 2304 | AC30: =$AC$2 -> 1 | AD30: =$AD$2 -> 453
B31: Metric volume units: ml, dl, l | P31: blue corn meal | R31: 0.51 | S31: =$R31*S$2 -> 51 | T31: =$R31*T$2 -> 510 | U31: =$R31*U$2 -> 2.55 | V31: =$R31*V$2 -> 7.65 | W31: =$R31*W$2 -> 15.08250008 | X31: =$X$2 -> 28.3495 | Y31: =$R31*Y$2 -> 120.6600006 | Z31: =$R31*Z$2 -> 241.3200012 | AA31: =$R31*AA$2 -> 482.6400025 | AB31: =$R31*AB$2 -> 1930.56001 | AC31: =$AC$2 -> 1 | AD31: =$AD$2 -> 453
B32: Metric weight units: g, kg | P32: blueberries, raw | R32: 0.62555942 | S32: =$R32*S$2 -> 62.555942 | T32: =$R32*T$2 -> 625.55942 | U32: =$R32*U$2 -> 3.1277971 | V32: =$R32*V$2 -> 9.3833913 | W32: =$R32*W$2 -> 18.5 | X32: =$X$2 -> 28.3495 | Y32: =$R32*Y$2 -> 148 | Z32: =$R32*Z$2 -> 296 | AA32: =$R32*AA$2 -> 592 | AB32: =$R32*AB$2 -> 2368 | AC32: =$AC$2 -> 1 | AD32: =$AD$2 -> 453
B33: For eggs, egg whites, egg yolks and stick of butter unit field is left blank | P33: bran, unsifted | R33: 0.23 | S33: =$R33*S$2 -> 23 | T33: =$R33*T$2 -> 230 | U33: =$R33*U$2 -> 1.15 | V33: =$R33*V$2 -> 3.45 | W33: =$R33*W$2 -> 6.801911799 | X33: =$X$2 -> 28.3495 | Y33: =$R33*Y$2 -> 54.4152944 | Z33: =$R33*Z$2 -> 108.8305888 | AA33: =$R33*AA$2 -> 217.6611776 | AB33: =$R33*AB$2 -> 870.6447103 | AC33: =$AC$2 -> 1 | AD33: =$AD$2 -> 453
P34: brazil nuts, whole | R34: 0.64 | S34: =$R34*S$2 -> 64 | T34: =$R34*T$2 -> 640 | U34: =$R34*U$2 -> 3.2 | V34: =$R34*V$2 -> 9.6 | W34: =$R34*W$2 -> 18.92705892 | X34: =$X$2 -> 28.3495 | Y34: =$R34*Y$2 -> 151.4164714 | Z34: =$R34*Z$2 -> 302.8329427 | AA34: =$R34*AA$2 -> 605.6658854 | AB34: =$R34*AB$2 -> 2422.663542 | AC34: =$AC$2 -> 1 | AD34: =$AD$2 -> 453
B35: Navigation | P35: bread crumbs, fresh | R35: 0.25 | S35: =$R35*S$2 -> 25 | T35: =$R35*T$2 -> 250 | U35: =$R35*U$2 -> 1.25 | V35: =$R35*V$2 -> 3.75 | W35: =$R35*W$2 -> 7.393382391 | X35: =$X$2 -> 28.3495 | Y35: =$R35*Y$2 -> 59.14705912 | Z35: =$R35*Z$2 -> 118.2941182 | AA35: =$R35*AA$2 -> 236.5882365 | AB35: =$R35*AB$2 -> 946.352946 | AC35: =$AC$2 -> 1 | AD35: =$AD$2 -> 453
B36: Use tab or left/right arrow to navigate in/out of ingredients | P36: bread crumbs, packaged | R36: 0.51 | S36: =$R36*S$2 -> 51 | T36: =$R36*T$2 -> 510 | U36: =$R36*U$2 -> 2.55 | V36: =$R36*V$2 -> 7.65 | W36: =$R36*W$2 -> 15.08250008 | X36: =$X$2 -> 28.3495 | Y36: =$R36*Y$2 -> 120.6600006 | Z36: =$R36*Z$2 -> 241.3200012 | AA36: =$R36*AA$2 -> 482.6400025 | AB36: =$R36*AB$2 -> 1930.56001 | AC36: =$AC$2 -> 1 | AD36: =$AD$2 -> 453
B37: Autocomplete feature in ingredient field requires macros to be enabled | P37: buckwheat groats | R37: 0.72 | S37: =$R37*S$2 -> 72 | T37: =$R37*T$2 -> 720 | U37: =$R37*U$2 -> 3.6 | V37: =$R37*V$2 -> 10.8 | W37: =$R37*W$2 -> 21.29294128 | X37: =$X$2 -> 28.3495 | Y37: =$R37*Y$2 -> 170.3435303 | Z37: =$R37*Z$2 -> 340.6870606 | AA37: =$R37*AA$2 -> 681.3741211 | AB37: =$R37*AB$2 -> 2725.496484 | AC37: =$AC$2 -> 1 | AD37: =$AD$2 -> 453
B38: Use up/down arrows to navigate up/down in drop down list of ingredients | P38: bulgur, dry | R38: 0.5917453973 | S38: =$R38*S$2 -> 59.17453973 | T38: =$R38*T$2 -> 591.7453973 | U38: =$R38*U$2 -> 2.958726986 | V38: =$R38*V$2 -> 8.876180959 | W38: =$R38*W$2 -> 17.5 | X38: =$X$2 -> 28.3495 | Y38: =$R38*Y$2 -> 140 | Z38: =$R38*Z$2 -> 280 | AA38: =$R38*AA$2 -> 560 | AB38: =$R38*AB$2 -> 2240 | AC38: =$AC$2 -> 1 | AD38: =$AD$2 -> 453
P39: butter | R39: 0.97 | S39: =$R39*S$2 -> 97 | T39: =$R39*T$2 -> 970 | U39: =$R39*U$2 -> 4.85 | V39: =$R39*V$2 -> 14.55 | W39: =$R39*W$2 -> 28.68632368 | X39: =$X$2 -> 28.3495 | Y39: =$R39*Y$2 -> 229.4905894 | Z39: =$R39*Z$2 -> 458.9811788 | AA39: =$R39*AA$2 -> 917.9623576 | AB39: =$R39*AB$2 -> 3671.84943 | AC39: =$AC$2 -> 1 | AD39: =$AD$2 -> 453
B40: References | P40: butter, stick | Q40: 114.75 | R40: 0.97 | S40: =$R40*S$2 -> 97 | T40: =$R40*T$2 -> 970 | U40: =$R40*U$2 -> 4.85 | V40: =$R40*V$2 -> 14.55 | W40: =$R40*W$2 -> 28.68632368 | X40: =$X$2 -> 28.3495 | Y40: =$R40*Y$2 -> 229.4905894 | Z40: =$R40*Z$2 -> 458.9811788 | AA40: =$R40*AA$2 -> 917.9623576 | AB40: =$R40*AB$2 -> 3671.84943 | AC40: =$AC$2 -> 1 | AD40: =$AD$2 -> 453
B41: Densities mainly taken from rec.food.cooking and USDA National Nutrient Database | P41: buttermilk | R41: 1.04 | S41: =$R41*S$2 -> 104 | T41: =$R41*T$2 -> 1040 | U41: =$R41*U$2 -> 5.2 | V41: =$R41*V$2 -> 15.6 | W41: =$R41*W$2 -> 30.75647075 | X41: =$X$2 -> 28.3495 | Y41: =$R41*Y$2 -> 246.051766 | Z41: =$R41*Z$2 -> 492.1035319 | AA41: =$R41*AA$2 -> 984.2070638 | AB41: =$R41*AB$2 -> 3936.828255 | AC41: =$AC$2 -> 1 | AD41: =$AD$2 -> 453
B42: Some additional data from http://www.aqua-calc.com | P42: cabbage, shredded | R42: 1.44 | S42: =$R42*S$2 -> 144 | T42: =$R42*T$2 -> 1440 | U42: =$R42*U$2 -> 7.2 | V42: =$R42*V$2 -> 21.6 | W42: =$R42*W$2 -> 42.58588257 | X42: =$X$2 -> 28.3495 | Y42: =$R42*Y$2 -> 340.6870606 | Z42: =$R42*Z$2 -> 681.3741211 | AA42: =$R42*AA$2 -> 1362.748242 | AB42: =$R42*AB$2 -> 5450.992969 | AC42: =$AC$2 -> 1 | AD42: =$AD$2 -> 453
B43: Some densities added/corrected by Martin Lersch | P43: cake crumbs, fresh | R43: 0.38 | S43: =$R43*S$2 -> 38 | T43: =$R43*T$2 -> 380 | U43: =$R43*U$2 -> 1.9 | V43: =$R43*V$2 -> 5.7 | W43: =$R43*W$2 -> 11.23794123 | X43: =$X$2 -> 28.3495 | Y43: =$R43*Y$2 -> 89.90352987 | Z43: =$R43*Z$2 -> 179.8070597 | AA43: =$R43*AA$2 -> 359.6141195 | AB43: =$R43*AB$2 -> 1438.456478 | AC43: =$AC$2 -> 1 | AD43: =$AD$2 -> 453
P44: candied lemon peel | R44: 0.57 | S44: =$R44*S$2 -> 57 | T44: =$R44*T$2 -> 570 | U44: =$R44*U$2 -> 2.85 | V44: =$R44*V$2 -> 8.55 | W44: =$R44*W$2 -> 16.85691185 | X44: =$X$2 -> 28.3495 | Y44: =$R44*Y$2 -> 134.8552948 | Z44: =$R44*Z$2 -> 269.7105896 | AA44: =$R44*AA$2 -> 539.4211792 | AB44: =$R44*AB$2 -> 2157.684717 | AC44: =$AC$2 -> 1 | AD44: =$AD$2 -> 453
B45: Volume-to-weight calculator by Martin Lersch (v.2, January 2014) | P45: candied orange peel | R45: 0.53 | S45: =$R45*S$2 -> 53 | T45: =$R45*T$2 -> 530 | U45: =$R45*U$2 -> 2.65 | V45: =$R45*V$2 -> 7.95 | W45: =$R45*W$2 -> 15.67397067 | X45: =$X$2 -> 28.3495 | Y45: =$R45*Y$2 -> 125.3917653 | Z45: =$R45*Z$2 -> 250.7835307 | AA45: =$R45*AA$2 -> 501.5670614 | AB45: =$R45*AB$2 -> 2006.268246 | AC45: =$AC$2 -> 1 | AD45: =$AD$2 -> 453
B46: Downloaded from Khymos - a blog dedicated to molecular gastronomy and popular food science | P46: caraway seed, whole | R46: 0.4466666667 | S46: =$R46*S$2 -> 44.66666667 | T46: =$R46*T$2 -> 446.6666667 | U46: =$R46*U$2 -> 2.233333333 | V46: =$R46*V$2 -> 6.7 | W46: =$R46*W$2 -> 13.20950987 | X46: =$X$2 -> 28.3495 | Y46: =$R46*Y$2 -> 105.676079 | Z46: =$R46*Z$2 -> 211.3521579 | AA46: =$R46*AA$2 -> 422.7043159 | AB46: =$R46*AB$2 -> 1690.817264 | AC46: =$AC$2 -> 1 | AD46: =$AD$2 -> 453
B47: http://blog.khymos.org | P47: cardamom, ground | R47: 0.3866666667 | S47: =$R47*S$2 -> 38.66666667 | T47: =$R47*T$2 -> 386.6666667 | U47: =$R47*U$2 -> 1.933333333 | V47: =$R47*V$2 -> 5.8 | W47: =$R47*W$2 -> 11.4350981 | X47: =$X$2 -> 28.3495 | Y47: =$R47*Y$2 -> 91.48078478 | Z47: =$R47*Z$2 -> 182.9615696 | AA47: =$R47*AA$2 -> 365.9231391 | AB47: =$R47*AB$2 -> 1463.692556 | AC47: =$AC$2 -> 1 | AD47: =$AD$2 -> 453
B48: http://twitter.com/tastymolecules | P48: carob flour | R48: 0.4353555423 | S48: =$R48*S$2 -> 43.53555423 | T48: =$R48*T$2 -> 435.3555423 | U48: =$R48*U$2 -> 2.176777711 | V48: =$R48*V$2 -> 6.530333134 | W48: =$R48*W$2 -> 12.875 | X48: =$X$2 -> 28.3495 | Y48: =$R48*Y$2 -> 103 | Z48: =$R48*Z$2 -> 206 | AA48: =$R48*AA$2 -> 412 | AB48: =$R48*AB$2 -> 1648 | AC48: =$AC$2 -> 1 | AD48: =$AD$2 -> 453
P49: carrots, raw, chopped | R49: 0.5410243632 | S49: =$R49*S$2 -> 54.10243632 | T49: =$R49*T$2 -> 541.0243632 | U49: =$R49*U$2 -> 2.705121816 | V49: =$R49*V$2 -> 8.115365448 | W49: =$R49*W$2 -> 16 | X49: =$X$2 -> 28.3495 | Y49: =$R49*Y$2 -> 128 | Z49: =$R49*Z$2 -> 256 | AA49: =$R49*AA$2 -> 512 | AB49: =$R49*AB$2 -> 2048 | AC49: =$AC$2 -> 1 | AD49: =$AD$2 -> 453
P50: carrots, raw, grated | R50: 0.4649428122 | S50: =$R50*S$2 -> 46.49428122 | T50: =$R50*T$2 -> 464.9428122 | U50: =$R50*U$2 -> 2.324714061 | V50: =$R50*V$2 -> 6.974142182 | W50: =$R50*W$2 -> 13.75 | X50: =$X$2 -> 28.3495 | Y50: =$R50*Y$2 -> 110 | Z50: =$R50*Z$2 -> 220 | AA50: =$R50*AA$2 -> 440 | AB50: =$R50*AB$2 -> 1760 | AC50: =$AC$2 -> 1 | AD50: =$AD$2 -> 453
P51: cashews, oil roasted | R51: 0.47 | S51: =$R51*S$2 -> 47 | T51: =$R51*T$2 -> 470 | U51: =$R51*U$2 -> 2.35 | V51: =$R51*V$2 -> 7.05 | W51: =$R51*W$2 -> 13.89955889 | X51: =$X$2 -> 28.3495 | Y51: =$R51*Y$2 -> 111.1964712 | Z51: =$R51*Z$2 -> 222.3929423 | AA51: =$R51*AA$2 -> 444.7858846 | AB51: =$R51*AB$2 -> 1779.143538 | AC51: =$AC$2 -> 1 | AD51: =$AD$2 -> 453
P52: cauliflower fleurets | R52: 0.97 | S52: =$R52*S$2 -> 97 | T52: =$R52*T$2 -> 970 | U52: =$R52*U$2 -> 4.85 | V52: =$R52*V$2 -> 14.55 | W52: =$R52*W$2 -> 28.68632368 | X52: =$X$2 -> 28.3495 | Y52: =$R52*Y$2 -> 229.4905894 | Z52: =$R52*Z$2 -> 458.9811788 | AA52: =$R52*AA$2 -> 917.9623576 | AB52: =$R52*AB$2 -> 3671.84943 | AC52: =$AC$2 -> 1 | AD52: =$AD$2 -> 453
P53: cayenne, powder | R53: 0.3533333333 | S53: =$R53*S$2 -> 35.33333333 | T53: =$R53*T$2 -> 353.3333333 | U53: =$R53*U$2 -> 1.766666667 | V53: =$R53*V$2 -> 5.3 | W53: =$R53*W$2 -> 10.44931378 | X53: =$X$2 -> 28.3495 | Y53: =$R53*Y$2 -> 83.59451023 | Z53: =$R53*Z$2 -> 167.1890205 | AA53: =$R53*AA$2 -> 334.3780409 | AB53: =$R53*AB$2 -> 1337.512164 | AC53: =$AC$2 -> 1 | AD53: =$AD$2 -> 453
P54: celery seed | R54: 0.43 | S54: =$R54*S$2 -> 43 | T54: =$R54*T$2 -> 430 | U54: =$R54*U$2 -> 2.15 | V54: =$R54*V$2 -> 6.45 | W54: =$R54*W$2 -> 12.71661771 | X54: =$X$2 -> 28.3495 | Y54: =$R54*Y$2 -> 101.7329417 | Z54: =$R54*Z$2 -> 203.4658834 | AA54: =$R54*AA$2 -> 406.9317668 | AB54: =$R54*AB$2 -> 1627.727067 | AC54: =$AC$2 -> 1 | AD54: =$AD$2 -> 453
P55: cereal, Rice Krispies | R55: 0.09 | S55: =$R55*S$2 -> 9 | T55: =$R55*T$2 -> 90 | U55: =$R55*U$2 -> 0.45 | V55: =$R55*V$2 -> 1.35 | W55: =$R55*W$2 -> 2.661617661 | X55: =$X$2 -> 28.3495 | Y55: =$R55*Y$2 -> 21.29294128 | Z55: =$R55*Z$2 -> 42.58588257 | AA55: =$R55*AA$2 -> 85.17176514 | AB55: =$R55*AB$2 -> 340.6870606 | AC55: =$AC$2 -> 1 | AD55: =$AD$2 -> 453
P56: cheese, cheddar, grated | R56: 0.51 | S56: =$R56*S$2 -> 51 | T56: =$R56*T$2 -> 510 | U56: =$R56*U$2 -> 2.55 | V56: =$R56*V$2 -> 7.65 | W56: =$R56*W$2 -> 15.08250008 | X56: =$X$2 -> 28.3495 | Y56: =$R56*Y$2 -> 120.6600006 | Z56: =$R56*Z$2 -> 241.3200012 | AA56: =$R56*AA$2 -> 482.6400025 | AB56: =$R56*AB$2 -> 1930.56001 | AC56: =$AC$2 -> 1 | AD56: =$AD$2 -> 453
P57: cheese, colby, grated | R57: 0.47 | S57: =$R57*S$2 -> 47 | T57: =$R57*T$2 -> 470 | U57: =$R57*U$2 -> 2.35 | V57: =$R57*V$2 -> 7.05 | W57: =$R57*W$2 -> 13.89955889 | X57: =$X$2 -> 28.3495 | Y57: =$R57*Y$2 -> 111.1964712 | Z57: =$R57*Z$2 -> 222.3929423 | AA57: =$R57*AA$2 -> 444.7858846 | AB57: =$R57*AB$2 -> 1779.143538 | AC57: =$AC$2 -> 1 | AD57: =$AD$2 -> 453
P58: cheese, cottage | R58: 0.97 | S58: =$R58*S$2 -> 97 | T58: =$R58*T$2 -> 970 | U58: =$R58*U$2 -> 4.85 | V58: =$R58*V$2 -> 14.55 | W58: =$R58*W$2 -> 28.68632368 | X58: =$X$2 -> 28.3495 | Y58: =$R58*Y$2 -> 229.4905894 | Z58: =$R58*Z$2 -> 458.9811788 | AA58: =$R58*AA$2 -> 917.9623576 | AB58: =$R58*AB$2 -> 3671.84943 | AC58: =$AC$2 -> 1 | AD58: =$AD$2 -> 453
P59: cheese, cream | R59: 1.02 | S59: =$R59*S$2 -> 102 | T59: =$R59*T$2 -> 1020 | U59: =$R59*U$2 -> 5.1 | V59: =$R59*V$2 -> 15.3 | W59: =$R59*W$2 -> 30.16500015 | X59: =$X$2 -> 28.3495 | Y59: =$R59*Y$2 -> 241.3200012 | Z59: =$R59*Z$2 -> 482.6400025 | AA59: =$R59*AA$2 -> 965.2800049 | AB59: =$R59*AB$2 -> 3861.12002 | AC59: =$AC$2 -> 1 | AD59: =$AD$2 -> 453
P60: cheese, grated parmesan | R60: 0.59 | S60: =$R60*S$2 -> 59 | T60: =$R60*T$2 -> 590 | U60: =$R60*U$2 -> 2.95 | V60: =$R60*V$2 -> 8.85 | W60: =$R60*W$2 -> 17.44838244 | X60: =$X$2 -> 28.3495 | Y60: =$R60*Y$2 -> 139.5870595 | Z60: =$R60*Z$2 -> 279.1741191 | AA60: =$R60*AA$2 -> 558.3482381 | AB60: =$R60*AB$2 -> 2233.392953 | AC60: =$AC$2 -> 1 | AD60: =$AD$2 -> 453
P61: cheese, jack, grated | R61: 0.55 | S61: =$R61*S$2 -> 55 | T61: =$R61*T$2 -> 550 | U61: =$R61*U$2 -> 2.75 | V61: =$R61*V$2 -> 8.25 | W61: =$R61*W$2 -> 16.26544126 | X61: =$X$2 -> 28.3495 | Y61: =$R61*Y$2 -> 130.1235301 | Z61: =$R61*Z$2 -> 260.2470602 | AA61: =$R61*AA$2 -> 520.4941203 | AB61: =$R61*AB$2 -> 2081.976481 | AC61: =$AC$2 -> 1 | AD61: =$AD$2 -> 453
P62: chervil, dried | R62: 0.1266666667 | S62: =$R62*S$2 -> 12.66666667 | T62: =$R62*T$2 -> 126.6666667 | U62: =$R62*U$2 -> 0.6333333333 | V62: =$R62*V$2 -> 1.9 | W62: =$R62*W$2 -> 3.745980411 | X62: =$X$2 -> 28.3495 | Y62: =$R62*Y$2 -> 29.96784329 | Z62: =$R62*Z$2 -> 59.93568658 | AA62: =$R62*AA$2 -> 119.8713732 | AB62: =$R62*AB$2 -> 479.4854926 | AC62: =$AC$2 -> 1 | AD62: =$AD$2 -> 453
P63: chili powder | R63: 0.5333333333 | S63: =$R63*S$2 -> 53.33333333 | T63: =$R63*T$2 -> 533.3333333 | U63: =$R63*U$2 -> 2.666666667 | V63: =$R63*V$2 -> 8 | W63: =$R63*W$2 -> 15.7725491 | X63: =$X$2 -> 28.3495 | Y63: =$R63*Y$2 -> 126.1803928 | Z63: =$R63*Z$2 -> 252.3607856 | AA63: =$R63*AA$2 -> 504.7215712 | AB63: =$R63*AB$2 -> 2018.886285 | AC63: =$AC$2 -> 1 | AD63: =$AD$2 -> 453
P64: chives, chopped dried | R64: 0.03 | S64: =$R64*S$2 -> 3 | T64: =$R64*T$2 -> 30 | U64: =$R64*U$2 -> 0.15 | V64: =$R64*V$2 -> 0.45 | W64: =$R64*W$2 -> 0.8872058869 | X64: =$X$2 -> 28.3495 | Y64: =$R64*Y$2 -> 7.097647095 | Z64: =$R64*Z$2 -> 14.19529419 | AA64: =$R64*AA$2 -> 28.39058838 | AB64: =$R64*AB$2 -> 113.5623535 | AC64: =$AC$2 -> 1 | AD64: =$AD$2 -> 453
P65: chives, chopped fresh | R65: 0.21 | S65: =$R65*S$2 -> 21 | T65: =$R65*T$2 -> 210 | U65: =$R65*U$2 -> 1.05 | V65: =$R65*V$2 -> 3.15 | W65: =$R65*W$2 -> 6.210441208 | X65: =$X$2 -> 28.3495 | Y65: =$R65*Y$2 -> 49.68352966 | Z65: =$R65*Z$2 -> 99.36705933 | AA65: =$R65*AA$2 -> 198.7341187 | AB65: =$R65*AB$2 -> 794.9364746 | AC65: =$AC$2 -> 1 | AD65: =$AD$2 -> 453
P66: chocolate chips | R66: 0.76 | S66: =$R66*S$2 -> 76 | T66: =$R66*T$2 -> 760 | U66: =$R66*U$2 -> 3.8 | V66: =$R66*V$2 -> 11.4 | W66: =$R66*W$2 -> 22.47588247 | X66: =$X$2 -> 28.3495 | Y66: =$R66*Y$2 -> 179.8070597 | Z66: =$R66*Z$2 -> 359.6141195 | AA66: =$R66*AA$2 -> 719.228239 | AB66: =$R66*AB$2 -> 2876.912956 | AC66: =$AC$2 -> 1 | AD66: =$AD$2 -> 453
P67: chocolate, cocoa powder | R67: 0.43 | S67: =$R67*S$2 -> 43 | T67: =$R67*T$2 -> 430 | U67: =$R67*U$2 -> 2.15 | V67: =$R67*V$2 -> 6.45 | W67: =$R67*W$2 -> 12.71661771 | X67: =$X$2 -> 28.3495 | Y67: =$R67*Y$2 -> 101.7329417 | Z67: =$R67*Z$2 -> 203.4658834 | AA67: =$R67*AA$2 -> 406.9317668 | AB67: =$R67*AB$2 -> 1627.727067 | AC67: =$AC$2 -> 1 | AD67: =$AD$2 -> 453
P68: chocolate, grated | R68: 0.42 | S68: =$R68*S$2 -> 42 | T68: =$R68*T$2 -> 420 | U68: =$R68*U$2 -> 2.1 | V68: =$R68*V$2 -> 6.3 | W68: =$R68*W$2 -> 12.42088242 | X68: =$X$2 -> 28.3495 | Y68: =$R68*Y$2 -> 99.36705933 | Z68: =$R68*Z$2 -> 198.7341187 | AA68: =$R68*AA$2 -> 397.4682373 | AB68: =$R68*AB$2 -> 1589.872949 | AC68: =$AC$2 -> 1 | AD68: =$AD$2 -> 453
P69: chocolate, melted | R69: 1.02 | S69: =$R69*S$2 -> 102 | T69: =$R69*T$2 -> 1020 | U69: =$R69*U$2 -> 5.1 | V69: =$R69*V$2 -> 15.3 | W69: =$R69*W$2 -> 30.16500015 | X69: =$X$2 -> 28.3495 | Y69: =$R69*Y$2 -> 241.3200012 | Z69: =$R69*Z$2 -> 482.6400025 | AA69: =$R69*AA$2 -> 965.2800049 | AB69: =$R69*AB$2 -> 3861.12002 | AC69: =$AC$2 -> 1 | AD69: =$AD$2 -> 453
P70: cinnamon, ground | R70: 0.52 | S70: =$R70*S$2 -> 52 | T70: =$R70*T$2 -> 520 | U70: =$R70*U$2 -> 2.6 | V70: =$R70*V$2 -> 7.8 | W70: =$R70*W$2 -> 15.37823537 | X70: =$X$2 -> 28.3495 | Y70: =$R70*Y$2 -> 123.025883 | Z70: =$R70*Z$2 -> 246.051766 | AA70: =$R70*AA$2 -> 492.1035319 | AB70: =$R70*AB$2 -> 1968.414128 | AC70: =$AC$2 -> 1 | AD70: =$AD$2 -> 453
P71: cloves, ground | R71: 0.41 | S71: =$R71*S$2 -> 41 | T71: =$R71*T$2 -> 410 | U71: =$R71*U$2 -> 2.05 | V71: =$R71*V$2 -> 6.15 | W71: =$R71*W$2 -> 12.12514712 | X71: =$X$2 -> 28.3495 | Y71: =$R71*Y$2 -> 97.00117696 | Z71: =$R71*Z$2 -> 194.0023539 | AA71: =$R71*AA$2 -> 388.0047079 | AB71: =$R71*AB$2 -> 1552.018831 | AC71: =$AC$2 -> 1 | AD71: =$AD$2 -> 453
P72: cloves, whole | R72: 0.38 | S72: =$R72*S$2 -> 38 | T72: =$R72*T$2 -> 380 | U72: =$R72*U$2 -> 1.9 | V72: =$R72*V$2 -> 5.7 | W72: =$R72*W$2 -> 11.23794123 | X72: =$X$2 -> 28.3495 | Y72: =$R72*Y$2 -> 89.90352987 | Z72: =$R72*Z$2 -> 179.8070597 | AA72: =$R72*AA$2 -> 359.6141195 | AB72: =$R72*AB$2 -> 1438.456478 | AC72: =$AC$2 -> 1 | AD72: =$AD$2 -> 453
P73: cocoa powder | R73: 0.43 | S73: =$R73*S$2 -> 43 | T73: =$R73*T$2 -> 430 | U73: =$R73*U$2 -> 2.15 | V73: =$R73*V$2 -> 6.45 | W73: =$R73*W$2 -> 12.71661771 | X73: =$X$2 -> 28.3495 | Y73: =$R73*Y$2 -> 101.7329417 | Z73: =$R73*Z$2 -> 203.4658834 | AA73: =$R73*AA$2 -> 406.9317668 | AB73: =$R73*AB$2 -> 1627.727067 | AC73: =$AC$2 -> 1 | AD73: =$AD$2 -> 453
P74: coconut, shredded | R74: 0.32 | S74: =$R74*S$2 -> 32 | T74: =$R74*T$2 -> 320 | U74: =$R74*U$2 -> 1.6 | V74: =$R74*V$2 -> 4.8 | W74: =$R74*W$2 -> 9.46352946 | X74: =$X$2 -> 28.3495 | Y74: =$R74*Y$2 -> 75.70823568 | Z74: =$R74*Z$2 -> 151.4164714 | AA74: =$R74*AA$2 -> 302.8329427 | AB74: =$R74*AB$2 -> 1211.331771 | AC74: =$AC$2 -> 1 | AD74: =$AD$2 -> 453
P75: coffee, ground | R75: 0.38 | S75: =$R75*S$2 -> 38 | T75: =$R75*T$2 -> 380 | U75: =$R75*U$2 -> 1.9 | V75: =$R75*V$2 -> 5.7 | W75: =$R75*W$2 -> 11.23794123 | X75: =$X$2 -> 28.3495 | Y75: =$R75*Y$2 -> 89.90352987 | Z75: =$R75*Z$2 -> 179.8070597 | AA75: =$R75*AA$2 -> 359.6141195 | AB75: =$R75*AB$2 -> 1438.456478 | AC75: =$AC$2 -> 1 | AD75: =$AD$2 -> 453
P76: coffee, instant | R76: 0.23 | S76: =$R76*S$2 -> 23 | T76: =$R76*T$2 -> 230 | U76: =$R76*U$2 -> 1.15 | V76: =$R76*V$2 -> 3.45 | W76: =$R76*W$2 -> 6.801911799 | X76: =$X$2 -> 28.3495 | Y76: =$R76*Y$2 -> 54.4152944 | Z76: =$R76*Z$2 -> 108.8305888 | AA76: =$R76*AA$2 -> 217.6611776 | AB76: =$R76*AB$2 -> 870.6447103 | AC76: =$AC$2 -> 1 | AD76: =$AD$2 -> 453
P77: coriander seed | R77: 0.3333333333 | S77: =$R77*S$2 -> 33.33333333 | T77: =$R77*T$2 -> 333.3333333 | U77: =$R77*U$2 -> 1.666666667 | V77: =$R77*V$2 -> 5 | W77: =$R77*W$2 -> 9.857843187 | X77: =$X$2 -> 28.3495 | Y77: =$R77*Y$2 -> 78.8627455 | Z77: =$R77*Z$2 -> 157.725491 | AA77: =$R77*AA$2 -> 315.450982 | AB77: =$R77*AB$2 -> 1261.803928 | AC77: =$AC$2 -> 1 | AD77: =$AD$2 -> 453
P78: corn, sweet yellow, raw | R78: 0.6128791615 | S78: =$R78*S$2 -> 61.28791615 | T78: =$R78*T$2 -> 612.8791615 | U78: =$R78*U$2 -> 3.064395807 | V78: =$R78*V$2 -> 9.193187422 | W78: =$R78*W$2 -> 18.125 | X78: =$X$2 -> 28.3495 | Y78: =$R78*Y$2 -> 145 | Z78: =$R78*Z$2 -> 290 | AA78: =$R78*AA$2 -> 580 | AB78: =$R78*AB$2 -> 2320 | AC78: =$AC$2 -> 1 | AD78: =$AD$2 -> 453
P79: cornmeal | R79: 0.72 | S79: =$R79*S$2 -> 72 | T79: =$R79*T$2 -> 720 | U79: =$R79*U$2 -> 3.6 | V79: =$R79*V$2 -> 10.8 | W79: =$R79*W$2 -> 21.29294128 | X79: =$X$2 -> 28.3495 | Y79: =$R79*Y$2 -> 170.3435303 | Z79: =$R79*Z$2 -> 340.6870606 | AA79: =$R79*AA$2 -> 681.3741211 | AB79: =$R79*AB$2 -> 2725.496484 | AC79: =$AC$2 -> 1 | AD79: =$AD$2 -> 453
P80: cornstarch (cornflour) | R80: 0.59 | S80: =$R80*S$2 -> 59 | T80: =$R80*T$2 -> 590 | U80: =$R80*U$2 -> 2.95 | V80: =$R80*V$2 -> 8.85 | W80: =$R80*W$2 -> 17.44838244 | X80: =$X$2 -> 28.3495 | Y80: =$R80*Y$2 -> 139.5870595 | Z80: =$R80*Z$2 -> 279.1741191 | AA80: =$R80*AA$2 -> 558.3482381 | AB80: =$R80*AB$2 -> 2233.392953 | AC80: =$AC$2 -> 1 | AD80: =$AD$2 -> 453
P81: cracker crumbs | R81: 0.25 | S81: =$R81*S$2 -> 25 | T81: =$R81*T$2 -> 250 | U81: =$R81*U$2 -> 1.25 | V81: =$R81*V$2 -> 3.75 | W81: =$R81*W$2 -> 7.393382391 | X81: =$X$2 -> 28.3495 | Y81: =$R81*Y$2 -> 59.14705912 | Z81: =$R81*Z$2 -> 118.2941182 | AA81: =$R81*AA$2 -> 236.5882365 | AB81: =$R81*AB$2 -> 946.352946 | AC81: =$AC$2 -> 1 | AD81: =$AD$2 -> 453
P82: cranberries, raw, chopped | R82: 0.4649428122 | S82: =$R82*S$2 -> 46.49428122 | T82: =$R82*T$2 -> 464.9428122 | U82: =$R82*U$2 -> 2.324714061 | V82: =$R82*V$2 -> 6.974142182 | W82: =$R82*W$2 -> 13.75 | X82: =$X$2 -> 28.3495 | Y82: =$R82*Y$2 -> 110 | Z82: =$R82*Z$2 -> 220 | AA82: =$R82*AA$2 -> 440 | AB82: =$R82*AB$2 -> 1760 | AC82: =$AC$2 -> 1 | AD82: =$AD$2 -> 453
P83: cranberries, raw, whole | R83: 0.42 | S83: =$R83*S$2 -> 42 | T83: =$R83*T$2 -> 420 | U83: =$R83*U$2 -> 2.1 | V83: =$R83*V$2 -> 6.3 | W83: =$R83*W$2 -> 12.42088242 | X83: =$X$2 -> 28.3495 | Y83: =$R83*Y$2 -> 99.36705933 | Z83: =$R83*Z$2 -> 198.7341187 | AA83: =$R83*AA$2 -> 397.4682373 | AB83: =$R83*AB$2 -> 1589.872949 | AC83: =$AC$2 -> 1 | AD83: =$AD$2 -> 453
P84: cream | R84: 1.01 | S84: =$R84*S$2 -> 101 | T84: =$R84*T$2 -> 1010 | U84: =$R84*U$2 -> 5.05 | V84: =$R84*V$2 -> 15.15 | W84: =$R84*W$2 -> 29.86926486 | X84: =$X$2 -> 28.3495 | Y84: =$R84*Y$2 -> 238.9541189 | Z84: =$R84*Z$2 -> 477.9082377 | AA84: =$R84*AA$2 -> 955.8164755 | AB84: =$R84*AB$2 -> 3823.265902 | AC84: =$AC$2 -> 1 | AD84: =$AD$2 -> 453
P85: cream of tartar | R85: 0.64 | S85: =$R85*S$2 -> 64 | T85: =$R85*T$2 -> 640 | U85: =$R85*U$2 -> 3.2 | V85: =$R85*V$2 -> 9.6 | W85: =$R85*W$2 -> 18.92705892 | X85: =$X$2 -> 28.3495 | Y85: =$R85*Y$2 -> 151.4164714 | Z85: =$R85*Z$2 -> 302.8329427 | AA85: =$R85*AA$2 -> 605.6658854 | AB85: =$R85*AB$2 -> 2422.663542 | AC85: =$AC$2 -> 1 | AD85: =$AD$2 -> 453
P86: cream of wheat | R86: 0.76 | S86: =$R86*S$2 -> 76 | T86: =$R86*T$2 -> 760 | U86: =$R86*U$2 -> 3.8 | V86: =$R86*V$2 -> 11.4 | W86: =$R86*W$2 -> 22.47588247 | X86: =$X$2 -> 28.3495 | Y86: =$R86*Y$2 -> 179.8070597 | Z86: =$R86*Z$2 -> 359.6141195 | AA86: =$R86*AA$2 -> 719.228239 | AB86: =$R86*AB$2 -> 2876.912956 | AC86: =$AC$2 -> 1 | AD86: =$AD$2 -> 453
P87: crisco, melted | R87: 0.89 | S87: =$R87*S$2 -> 89 | T87: =$R87*T$2 -> 890 | U87: =$R87*U$2 -> 4.45 | V87: =$R87*V$2 -> 13.35 | W87: =$R87*W$2 -> 26.32044131 | X87: =$X$2 -> 28.3495 | Y87: =$R87*Y$2 -> 210.5635305 | Z87: =$R87*Z$2 -> 421.127061 | AA87: =$R87*AA$2 -> 842.2541219 | AB87: =$R87*AB$2 -> 3369.016488 | AC87: =$AC$2 -> 1 | AD87: =$AD$2 -> 453
P88: crisco, solid | R88: 0.93 | S88: =$R88*S$2 -> 93 | T88: =$R88*T$2 -> 930 | U88: =$R88*U$2 -> 4.65 | V88: =$R88*V$2 -> 13.95 | W88: =$R88*W$2 -> 27.50338249 | X88: =$X$2 -> 28.3495 | Y88: =$R88*Y$2 -> 220.0270599 | Z88: =$R88*Z$2 -> 440.0541199 | AA88: =$R88*AA$2 -> 880.1082398 | AB88: =$R88*AB$2 -> 3520.432959 | AC88: =$AC$2 -> 1 | AD88: =$AD$2 -> 453
P89: cumin seed, whole | R89: 0.4 | S89: =$R89*S$2 -> 40 | T89: =$R89*T$2 -> 400 | U89: =$R89*U$2 -> 2 | V89: =$R89*V$2 -> 6 | W89: =$R89*W$2 -> 11.82941183 | X89: =$X$2 -> 28.3495 | Y89: =$R89*Y$2 -> 94.6352946 | Z89: =$R89*Z$2 -> 189.2705892 | AA89: =$R89*AA$2 -> 378.5411784 | AB89: =$R89*AB$2 -> 1514.164714 | AC89: =$AC$2 -> 1 | AD89: =$AD$2 -> 453
P90: currants | R90: 0.64 | S90: =$R90*S$2 -> 64 | T90: =$R90*T$2 -> 640 | U90: =$R90*U$2 -> 3.2 | V90: =$R90*V$2 -> 9.6 | W90: =$R90*W$2 -> 18.92705892 | X90: =$X$2 -> 28.3495 | Y90: =$R90*Y$2 -> 151.4164714 | Z90: =$R90*Z$2 -> 302.8329427 | AA90: =$R90*AA$2 -> 605.6658854 | AB90: =$R90*AB$2 -> 2422.663542 | AC90: =$AC$2 -> 1 | AD90: =$AD$2 -> 453
P91: curry powder | R91: 0.43 | S91: =$R91*S$2 -> 43 | T91: =$R91*T$2 -> 430 | U91: =$R91*U$2 -> 2.15 | V91: =$R91*V$2 -> 6.45 | W91: =$R91*W$2 -> 12.71661771 | X91: =$X$2 -> 28.3495 | Y91: =$R91*Y$2 -> 101.7329417 | Z91: =$R91*Z$2 -> 203.4658834 | AA91: =$R91*AA$2 -> 406.9317668 | AB91: =$R91*AB$2 -> 1627.727067 | AC91: =$AC$2 -> 1 | AD91: =$AD$2 -> 453
P92: dates, chopped | R92: 0.64 | S92: =$R92*S$2 -> 64 | T92: =$R92*T$2 -> 640 | U92: =$R92*U$2 -> 3.2 | V92: =$R92*V$2 -> 9.6 | W92: =$R92*W$2 -> 18.92705892 | X92: =$X$2 -> 28.3495 | Y92: =$R92*Y$2 -> 151.4164714 | Z92: =$R92*Z$2 -> 302.8329427 | AA92: =$R92*AA$2 -> 605.6658854 | AB92: =$R92*AB$2 -> 2422.663542 | AC92: =$AC$2 -> 1 | AD92: =$AD$2 -> 453
P93: dill seed | R93: 0.44 | S93: =$R93*S$2 -> 44 | T93: =$R93*T$2 -> 440 | U93: =$R93*U$2 -> 2.2 | V93: =$R93*V$2 -> 6.6 | W93: =$R93*W$2 -> 13.01235301 | X93: =$X$2 -> 28.3495 | Y93: =$R93*Y$2 -> 104.0988241 | Z93: =$R93*Z$2 -> 208.1976481 | AA93: =$R93*AA$2 -> 416.3952962 | AB93: =$R93*AB$2 -> 1665.581185 | AC93: =$AC$2 -> 1 | AD93: =$AD$2 -> 453
P94: egg | Q94: 60.5 | R94: 0.97 | S94: =$R94*S$2 -> 97 | T94: =$R94*T$2 -> 970 | U94: =$R94*U$2 -> 4.85 | V94: =$R94*V$2 -> 14.55 | W94: =$R94*W$2 -> 28.68632368 | X94: =$X$2 -> 28.3495 | Y94: =$R94*Y$2 -> 229.4905894 | Z94: =$R94*Z$2 -> 458.9811788 | AA94: =$R94*AA$2 -> 917.9623576 | AB94: =$R94*AB$2 -> 3671.84943 | AC94: =$AC$2 -> 1 | AD94: =$AD$2 -> 453
P95: egg noodles | R95: 0.38 | S95: =$R95*S$2 -> 38 | T95: =$R95*T$2 -> 380 | U95: =$R95*U$2 -> 1.9 | V95: =$R95*V$2 -> 5.7 | W95: =$R95*W$2 -> 11.23794123 | X95: =$X$2 -> 28.3495 | Y95: =$R95*Y$2 -> 89.90352987 | Z95: =$R95*Z$2 -> 179.8070597 | AA95: =$R95*AA$2 -> 359.6141195 | AB95: =$R95*AB$2 -> 1438.456478 | AC95: =$AC$2 -> 1 | AD95: =$AD$2 -> 453
P96: egg white | Q96: 34.5 | R96: 0.93 | S96: =$R96*S$2 -> 93 | T96: =$R96*T$2 -> 930 | U96: =$R96*U$2 -> 4.65 | V96: =$R96*V$2 -> 13.95 | W96: =$R96*W$2 -> 27.50338249 | X96: =$X$2 -> 28.3495 | Y96: =$R96*Y$2 -> 220.0270599 | Z96: =$R96*Z$2 -> 440.0541199 | AA96: =$R96*AA$2 -> 880.1082398 | AB96: =$R96*AB$2 -> 3520.432959 | AC96: =$AC$2 -> 1 | AD96: =$AD$2 -> 453
P97: egg yolk | Q97: 20 | R97: 1.14 | S97: =$R97*S$2 -> 114 | T97: =$R97*T$2 -> 1140 | U97: =$R97*U$2 -> 5.7 | V97: =$R97*V$2 -> 17.1 | W97: =$R97*W$2 -> 33.7138237 | X97: =$X$2 -> 28.3495 | Y97: =$R97*Y$2 -> 269.7105896 | Z97: =$R97*Z$2 -> 539.4211792 | AA97: =$R97*AA$2 -> 1078.842358 | AB97: =$R97*AB$2 -> 4315.369434 | AC97: =$AC$2 -> 1 | AD97: =$AD$2 -> 453
P98: egg, beaten | Q98: 60.5 | R98: 0.97 | S98: =$R98*S$2 -> 97 | T98: =$R98*T$2 -> 970 | U98: =$R98*U$2 -> 4.85 | V98: =$R98*V$2 -> 14.55 | W98: =$R98*W$2 -> 28.68632368 | X98: =$X$2 -> 28.3495 | Y98: =$R98*Y$2 -> 229.4905894 | Z98: =$R98*Z$2 -> 458.9811788 | AA98: =$R98*AA$2 -> 917.9623576 | AB98: =$R98*AB$2 -> 3671.84943 | AC98: =$AC$2 -> 1 | AD98: =$AD$2 -> 453
P99: elderberries, raw | R99: 0.6128791615 | S99: =$R99*S$2 -> 61.28791615 | T99: =$R99*T$2 -> 612.8791615 | U99: =$R99*U$2 -> 3.064395807 | V99: =$R99*V$2 -> 9.193187422 | W99: =$R99*W$2 -> 18.125 | X99: =$X$2 -> 28.3495 | Y99: =$R99*Y$2 -> 145 | Z99: =$R99*Z$2 -> 290 | AA99: =$R99*AA$2 -> 580 | AB99: =$R99*AB$2 -> 2320 | AC99: =$AC$2 -> 1 | AD99: =$AD$2 -> 453
P100: evaporated milk | R100: 0.93 | S100: =$R100*S$2 -> 93 | T100: =$R100*T$2 -> 930 | U100: =$R100*U$2 -> 4.65 | V100: =$R100*V$2 -> 13.95 | W100: =$R100*W$2 -> 27.50338249 | X100: =$X$2 -> 28.3495 | Y100: =$R100*Y$2 -> 220.0270599 | Z100: =$R100*Z$2 -> 440.0541199 | AA100: =$R100*AA$2 -> 880.1082398 | AB100: =$R100*AB$2 -> 3520.432959 | AC100: =$AC$2 -> 1 | AD100: =$AD$2 -> 453
P101: farina | R101: 0.76 | S101: =$R101*S$2 -> 76 | T101: =$R101*T$2 -> 760 | U101: =$R101*U$2 -> 3.8 | V101: =$R101*V$2 -> 11.4 | W101: =$R101*W$2 -> 22.47588247 | X101: =$X$2 -> 28.3495 | Y101: =$R101*Y$2 -> 179.8070597 | Z101: =$R101*Z$2 -> 359.6141195 | AA101: =$R101*AA$2 -> 719.228239 | AB101: =$R101*AB$2 -> 2876.912956 | AC101: =$AC$2 -> 1 | AD101: =$AD$2 -> 453
P102: fat, duck | R102: 0.8664843317 | S102: =$R102*S$2 -> 86.64843317 | T102: =$R102*T$2 -> 866.4843317 | U102: =$R102*U$2 -> 4.332421659 | V102: =$R102*V$2 -> 12.99726498 | W102: =$R102*W$2 -> 25.625 | X102: =$X$2 -> 28.3495 | Y102: =$R102*Y$2 -> 205 | Z102: =$R102*Z$2 -> 410 | AA102: =$R102*AA$2 -> 820 | AB102: =$R102*AB$2 -> 3280 | AC102: =$AC$2 -> 1 | AD102: =$AD$2 -> 453
P103: fennel seed, whole | R103: 0.3866666667 | S103: =$R103*S$2 -> 38.66666667 | T103: =$R103*T$2 -> 386.6666667 | U103: =$R103*U$2 -> 1.933333333 | V103: =$R103*V$2 -> 5.8 | W103: =$R103*W$2 -> 11.4350981 | X103: =$X$2 -> 28.3495 | Y103: =$R103*Y$2 -> 91.48078478 | Z103: =$R103*Z$2 -> 182.9615696 | AA103: =$R103*AA$2 -> 365.9231391 | AB103: =$R103*AB$2 -> 1463.692556 | AC103: =$AC$2 -> 1 | AD103: =$AD$2 -> 453
P104: fenugreek seed | R104: 0.74 | S104: =$R104*S$2 -> 74 | T104: =$R104*T$2 -> 740 | U104: =$R104*U$2 -> 3.7 | V104: =$R104*V$2 -> 11.1 | W104: =$R104*W$2 -> 21.88441188 | X104: =$X$2 -> 28.3495 | Y104: =$R104*Y$2 -> 175.075295 | Z104: =$R104*Z$2 -> 350.15059 | AA104: =$R104*AA$2 -> 700.30118 | AB104: =$R104*AB$2 -> 2801.20472 | AC104: =$AC$2 -> 1 | AD104: =$AD$2 -> 453
P105: figs, dried | R105: 0.66 | S105: =$R105*S$2 -> 66 | T105: =$R105*T$2 -> 660 | U105: =$R105*U$2 -> 3.3 | V105: =$R105*V$2 -> 9.9 | W105: =$R105*W$2 -> 19.51852951 | X105: =$X$2 -> 28.3495 | Y105: =$R105*Y$2 -> 156.1482361 | Z105: =$R105*Z$2 -> 312.2964722 | AA105: =$R105*AA$2 -> 624.5929444 | AB105: =$R105*AB$2 -> 2498.371777 | AC105: =$AC$2 -> 1 | AD105: =$AD$2 -> 453
P106: flour | R106: 0.6 | S106: =$R106*S$2 -> 60 | T106: =$R106*T$2 -> 600 | U106: =$R106*U$2 -> 3 | V106: =$R106*V$2 -> 9 | W106: =$R106*W$2 -> 17.74411774 | X106: =$X$2 -> 28.3495 | Y106: =$R106*Y$2 -> 141.9529419 | Z106: =$R106*Z$2 -> 283.9058838 | AA106: =$R106*AA$2 -> 567.8117676 | AB106: =$R106*AB$2 -> 2271.24707 | AC106: =$AC$2 -> 1 | AD106: =$AD$2 -> 453
P107: flour, plain wheat | R107: 0.6 | S107: =$R107*S$2 -> 60 | T107: =$R107*T$2 -> 600 | U107: =$R107*U$2 -> 3 | V107: =$R107*V$2 -> 9 | W107: =$R107*W$2 -> 17.74411774 | X107: =$X$2 -> 28.3495 | Y107: =$R107*Y$2 -> 141.9529419 | Z107: =$R107*Z$2 -> 283.9058838 | AA107: =$R107*AA$2 -> 567.8117676 | AB107: =$R107*AB$2 -> 2271.24707 | AC107: =$AC$2 -> 1 | AD107: =$AD$2 -> 453
P108: flour, plain wheat - scooped | R108: 0.65 | S108: =$R108*S$2 -> 65 | T108: =$R108*T$2 -> 650 | U108: =$R108*U$2 -> 3.25 | V108: =$R108*V$2 -> 9.75 | W108: =$R108*W$2 -> 19.22279422 | X108: =$X$2 -> 28.3495 | Y108: =$R108*Y$2 -> 153.7823537 | Z108: =$R108*Z$2 -> 307.5647075 | AA108: =$R108*AA$2 -> 615.1294149 | AB108: =$R108*AB$2 -> 2460.51766 | AC108: =$AC$2 -> 1 | AD108: =$AD$2 -> 453
P109: flour, plain wheat - spooned | R109: 0.55 | S109: =$R109*S$2 -> 55 | T109: =$R109*T$2 -> 550 | U109: =$R109*U$2 -> 2.75 | V109: =$R109*V$2 -> 8.25 | W109: =$R109*W$2 -> 16.26544126 | X109: =$X$2 -> 28.3495 | Y109: =$R109*Y$2 -> 130.1235301 | Z109: =$R109*Z$2 -> 260.2470602 | AA109: =$R109*AA$2 -> 520.4941203 | AB109: =$R109*AB$2 -> 2081.976481 | AC109: =$AC$2 -> 1 | AD109: =$AD$2 -> 453
P110: flour, potato | R110: 0.72 | S110: =$R110*S$2 -> 72 | T110: =$R110*T$2 -> 720 | U110: =$R110*U$2 -> 3.6 | V110: =$R110*V$2 -> 10.8 | W110: =$R110*W$2 -> 21.29294128 | X110: =$X$2 -> 28.3495 | Y110: =$R110*Y$2 -> 170.3435303 | Z110: =$R110*Z$2 -> 340.6870606 | AA110: =$R110*AA$2 -> 681.3741211 | AB110: =$R110*AB$2 -> 2725.496484 | AC110: =$AC$2 -> 1 | AD110: =$AD$2 -> 453
P111: flour, rice | R111: 0.64 | S111: =$R111*S$2 -> 64 | T111: =$R111*T$2 -> 640 | U111: =$R111*U$2 -> 3.2 | V111: =$R111*V$2 -> 9.6 | W111: =$R111*W$2 -> 18.92705892 | X111: =$X$2 -> 28.3495 | Y111: =$R111*Y$2 -> 151.4164714 | Z111: =$R111*Z$2 -> 302.8329427 | AA111: =$R111*AA$2 -> 605.6658854 | AB111: =$R111*AB$2 -> 2422.663542 | AC111: =$AC$2 -> 1 | AD111: =$AD$2 -> 453
P112: flour, semolina | R112: 0.74 | S112: =$R112*S$2 -> 74 | T112: =$R112*T$2 -> 740 | U112: =$R112*U$2 -> 3.7 | V112: =$R112*V$2 -> 11.1 | W112: =$R112*W$2 -> 21.88441188 | X112: =$X$2 -> 28.3495 | Y112: =$R112*Y$2 -> 175.075295 | Z112: =$R112*Z$2 -> 350.15059 | AA112: =$R112*AA$2 -> 700.30118 | AB112: =$R112*AB$2 -> 2801.20472 | AC112: =$AC$2 -> 1 | AD112: =$AD$2 -> 453
P113: flour, whole wheat | R113: 0.55 | S113: =$R113*S$2 -> 55 | T113: =$R113*T$2 -> 550 | U113: =$R113*U$2 -> 2.75 | V113: =$R113*V$2 -> 8.25 | W113: =$R113*W$2 -> 16.26544126 | X113: =$X$2 -> 28.3495 | Y113: =$R113*Y$2 -> 130.1235301 | Z113: =$R113*Z$2 -> 260.2470602 | AA113: =$R113*AA$2 -> 520.4941203 | AB113: =$R113*AB$2 -> 2081.976481 | AC113: =$AC$2 -> 1 | AD113: =$AD$2 -> 453
P114: fungus, wood ear | R114: 0.42 | S114: =$R114*S$2 -> 42 | T114: =$R114*T$2 -> 420 | U114: =$R114*U$2 -> 2.1 | V114: =$R114*V$2 -> 6.3 | W114: =$R114*W$2 -> 12.42088242 | X114: =$X$2 -> 28.3495 | Y114: =$R114*Y$2 -> 99.36705933 | Z114: =$R114*Z$2 -> 198.7341187 | AA114: =$R114*AA$2 -> 397.4682373 | AB114: =$R114*AB$2 -> 1589.872949 | AC114: =$AC$2 -> 1 | AD114: =$AD$2 -> 453
P115: garlic powder | R115: 0.68 | S115: =$R115*S$2 -> 68 | T115: =$R115*T$2 -> 680 | U115: =$R115*U$2 -> 3.4 | V115: =$R115*V$2 -> 10.2 | W115: =$R115*W$2 -> 20.1100001 | X115: =$X$2 -> 28.3495 | Y115: =$R115*Y$2 -> 160.8800008 | Z115: =$R115*Z$2 -> 321.7600016 | AA115: =$R115*AA$2 -> 643.5200033 | AB115: =$R115*AB$2 -> 2574.080013 | AC115: =$AC$2 -> 1 | AD115: =$AD$2 -> 453
P116: garlic, minced | R116: 0.64 | S116: =$R116*S$2 -> 64 | T116: =$R116*T$2 -> 640 | U116: =$R116*U$2 -> 3.2 | V116: =$R116*V$2 -> 9.6 | W116: =$R116*W$2 -> 18.92705892 | X116: =$X$2 -> 28.3495 | Y116: =$R116*Y$2 -> 151.4164714 | Z116: =$R116*Z$2 -> 302.8329427 | AA116: =$R116*AA$2 -> 605.6658854 | AB116: =$R116*AB$2 -> 2422.663542 | AC116: =$AC$2 -> 1 | AD116: =$AD$2 -> 453
P117: gelatin | R117: 0.93 | S117: =$R117*S$2 -> 93 | T117: =$R117*T$2 -> 930 | U117: =$R117*U$2 -> 4.65 | V117: =$R117*V$2 -> 13.95 | W117: =$R117*W$2 -> 27.50338249 | X117: =$X$2 -> 28.3495 | Y117: =$R117*Y$2 -> 220.0270599 | Z117: =$R117*Z$2 -> 440.0541199 | AA117: =$R117*AA$2 -> 880.1082398 | AB117: =$R117*AB$2 -> 3520.432959 | AC117: =$AC$2 -> 1 | AD117: =$AD$2 -> 453
P118: ginger root, raw | R118: 0.4 | S118: =$R118*S$2 -> 40 | T118: =$R118*T$2 -> 400 | U118: =$R118*U$2 -> 2 | V118: =$R118*V$2 -> 6 | W118: =$R118*W$2 -> 11.82941183 | X118: =$X$2 -> 28.3495 | Y118: =$R118*Y$2 -> 94.6352946 | Z118: =$R118*Z$2 -> 189.2705892 | AA118: =$R118*AA$2 -> 378.5411784 | AB118: =$R118*AB$2 -> 1514.164714 | AC118: =$AC$2 -> 1 | AD118: =$AD$2 -> 453
P119: ginger root, raw, slices | R119: 0.4057682724 | S119: =$R119*S$2 -> 40.57682724 | T119: =$R119*T$2 -> 405.7682724 | U119: =$R119*U$2 -> 2.028841362 | V119: =$R119*V$2 -> 6.086524086 | W119: =$R119*W$2 -> 12 | X119: =$X$2 -> 28.3495 | Y119: =$R119*Y$2 -> 96 | Z119: =$R119*Z$2 -> 192 | AA119: =$R119*AA$2 -> 384 | AB119: =$R119*AB$2 -> 1536 | AC119: =$AC$2 -> 1 | AD119: =$AD$2 -> 453
P120: ginger, crystal | R120: 1.02 | S120: =$R120*S$2 -> 102 | T120: =$R120*T$2 -> 1020 | U120: =$R120*U$2 -> 5.1 | V120: =$R120*V$2 -> 15.3 | W120: =$R120*W$2 -> 30.16500015 | X120: =$X$2 -> 28.3495 | Y120: =$R120*Y$2 -> 241.3200012 | Z120: =$R120*Z$2 -> 482.6400025 | AA120: =$R120*AA$2 -> 965.2800049 | AB120: =$R120*AB$2 -> 3861.12002 | AC120: =$AC$2 -> 1 | AD120: =$AD$2 -> 453
P121: ginger, fresh | R121: 0.97 | S121: =$R121*S$2 -> 97 | T121: =$R121*T$2 -> 970 | U121: =$R121*U$2 -> 4.85 | V121: =$R121*V$2 -> 14.55 | W121: =$R121*W$2 -> 28.68632368 | X121: =$X$2 -> 28.3495 | Y121: =$R121*Y$2 -> 229.4905894 | Z121: =$R121*Z$2 -> 458.9811788 | AA121: =$R121*AA$2 -> 917.9623576 | AB121: =$R121*AB$2 -> 3671.84943 | AC121: =$AC$2 -> 1 | AD121: =$AD$2 -> 453
P122: ginger, ground | R122: 0.43 | S122: =$R122*S$2 -> 43 | T122: =$R122*T$2 -> 430 | U122: =$R122*U$2 -> 2.15 | V122: =$R122*V$2 -> 6.45 | W122: =$R122*W$2 -> 12.71661771 | X122: =$X$2 -> 28.3495 | Y122: =$R122*Y$2 -> 101.7329417 | Z122: =$R122*Z$2 -> 203.4658834 | AA122: =$R122*AA$2 -> 406.9317668 | AB122: =$R122*AB$2 -> 1627.727067 | AC122: =$AC$2 -> 1 | AD122: =$AD$2 -> 453
P123: gooseberries, raw | R123: 0.6340129257 | S123: =$R123*S$2 -> 63.40129257 | T123: =$R123*T$2 -> 634.0129257 | U123: =$R123*U$2 -> 3.170064628 | V123: =$R123*V$2 -> 9.510193885 | W123: =$R123*W$2 -> 18.75 | X123: =$X$2 -> 28.3495 | Y123: =$R123*Y$2 -> 150 | Z123: =$R123*Z$2 -> 300 | AA123: =$R123*AA$2 -> 600 | AB123: =$R123*AB$2 -> 2400 | AC123: =$AC$2 -> 1 | AD123: =$AD$2 -> 453
P124: graham cracker crumbs | R124: 0.38 | S124: =$R124*S$2 -> 38 | T124: =$R124*T$2 -> 380 | U124: =$R124*U$2 -> 1.9 | V124: =$R124*V$2 -> 5.7 | W124: =$R124*W$2 -> 11.23794123 | X124: =$X$2 -> 28.3495 | Y124: =$R124*Y$2 -> 89.90352987 | Z124: =$R124*Z$2 -> 179.8070597 | AA124: =$R124*AA$2 -> 359.6141195 | AB124: =$R124*AB$2 -> 1438.456478 | AC124: =$AC$2 -> 1 | AD124: =$AD$2 -> 453
P125: grape nuts | R125: 0.51 | S125: =$R125*S$2 -> 51 | T125: =$R125*T$2 -> 510 | U125: =$R125*U$2 -> 2.55 | V125: =$R125*V$2 -> 7.65 | W125: =$R125*W$2 -> 15.08250008 | X125: =$X$2 -> 28.3495 | Y125: =$R125*Y$2 -> 120.6600006 | Z125: =$R125*Z$2 -> 241.3200012 | AA125: =$R125*AA$2 -> 482.6400025 | AB125: =$R125*AB$2 -> 1930.56001 | AC125: =$AC$2 -> 1 | AD125: =$AD$2 -> 453
P126: gumdrops | R126: 0.68 | S126: =$R126*S$2 -> 68 | T126: =$R126*T$2 -> 680 | U126: =$R126*U$2 -> 3.4 | V126: =$R126*V$2 -> 10.2 | W126: =$R126*W$2 -> 20.1100001 | X126: =$X$2 -> 28.3495 | Y126: =$R126*Y$2 -> 160.8800008 | Z126: =$R126*Z$2 -> 321.7600016 | AA126: =$R126*AA$2 -> 643.5200033 | AB126: =$R126*AB$2 -> 2574.080013 | AC126: =$AC$2 -> 1 | AD126: =$AD$2 -> 453
P127: gummi bears | R127: 0.64 | S127: =$R127*S$2 -> 64 | T127: =$R127*T$2 -> 640 | U127: =$R127*U$2 -> 3.2 | V127: =$R127*V$2 -> 9.6 | W127: =$R127*W$2 -> 18.92705892 | X127: =$X$2 -> 28.3495 | Y127: =$R127*Y$2 -> 151.4164714 | Z127: =$R127*Z$2 -> 302.8329427 | AA127: =$R127*AA$2 -> 605.6658854 | AB127: =$R127*AB$2 -> 2422.663542 | AC127: =$AC$2 -> 1 | AD127: =$AD$2 -> 453
P128: hazelnuts, whole | R128: 0.72 | S128: =$R128*S$2 -> 72 | T128: =$R128*T$2 -> 720 | U128: =$R128*U$2 -> 3.6 | V128: =$R128*V$2 -> 10.8 | W128: =$R128*W$2 -> 21.29294128 | X128: =$X$2 -> 28.3495 | Y128: =$R128*Y$2 -> 170.3435303 | Z128: =$R128*Z$2 -> 340.6870606 | AA128: =$R128*AA$2 -> 681.3741211 | AB128: =$R128*AB$2 -> 2725.496484 | AC128: =$AC$2 -> 1 | AD128: =$AD$2 -> 453
P129: honey | R129: 1.44 | S129: =$R129*S$2 -> 144 | T129: =$R129*T$2 -> 1440 | U129: =$R129*U$2 -> 7.2 | V129: =$R129*V$2 -> 21.6 | W129: =$R129*W$2 -> 42.58588257 | X129: =$X$2 -> 28.3495 | Y129: =$R129*Y$2 -> 340.6870606 | Z129: =$R129*Z$2 -> 681.3741211 | AA129: =$R129*AA$2 -> 1362.748242 | AB129: =$R129*AB$2 -> 5450.992969 | AC129: =$AC$2 -> 1 | AD129: =$AD$2 -> 453
P130: kasha | R130: 0.72 | S130: =$R130*S$2 -> 72 | T130: =$R130*T$2 -> 720 | U130: =$R130*U$2 -> 3.6 | V130: =$R130*V$2 -> 10.8 | W130: =$R130*W$2 -> 21.29294128 | X130: =$X$2 -> 28.3495 | Y130: =$R130*Y$2 -> 170.3435303 | Z130: =$R130*Z$2 -> 340.6870606 | AA130: =$R130*AA$2 -> 681.3741211 | AB130: =$R130*AB$2 -> 2725.496484 | AC130: =$AC$2 -> 1 | AD130: =$AD$2 -> 453
P131: ketchup | R131: 1.16 | S131: =$R131*S$2 -> 116 | T131: =$R131*T$2 -> 1160 | U131: =$R131*U$2 -> 5.8 | V131: =$R131*V$2 -> 17.4 | W131: =$R131*W$2 -> 34.30529429 | X131: =$X$2 -> 28.3495 | Y131: =$R131*Y$2 -> 274.4423543 | Z131: =$R131*Z$2 -> 548.8847087 | AA131: =$R131*AA$2 -> 1097.769417 | AB131: =$R131*AB$2 -> 4391.077669 | AC131: =$AC$2 -> 1 | AD131: =$AD$2 -> 453
P132: lard | R132: 0.93 | S132: =$R132*S$2 -> 93 | T132: =$R132*T$2 -> 930 | U132: =$R132*U$2 -> 4.65 | V132: =$R132*V$2 -> 13.95 | W132: =$R132*W$2 -> 27.50338249 | X132: =$X$2 -> 28.3495 | Y132: =$R132*Y$2 -> 220.0270599 | Z132: =$R132*Z$2 -> 440.0541199 | AA132: =$R132*AA$2 -> 880.1082398 | AB132: =$R132*AB$2 -> 3520.432959 | AC132: =$AC$2 -> 1 | AD132: =$AD$2 -> 453
P133: lemon juice | R133: 1.03 | S133: =$R133*S$2 -> 103 | T133: =$R133*T$2 -> 1030 | U133: =$R133*U$2 -> 5.15 | V133: =$R133*V$2 -> 15.45 | W133: =$R133*W$2 -> 30.46073545 | X133: =$X$2 -> 28.3495 | Y133: =$R133*Y$2 -> 243.6858836 | Z133: =$R133*Z$2 -> 487.3717672 | AA133: =$R133*AA$2 -> 974.7435344 | AB133: =$R133*AB$2 -> 3898.974138 | AC133: =$AC$2 -> 1 | AD133: =$AD$2 -> 453
P134: lemon rind, grated | R134: 0.64 | S134: =$R134*S$2 -> 64 | T134: =$R134*T$2 -> 640 | U134: =$R134*U$2 -> 3.2 | V134: =$R134*V$2 -> 9.6 | W134: =$R134*W$2 -> 18.92705892 | X134: =$X$2 -> 28.3495 | Y134: =$R134*Y$2 -> 151.4164714 | Z134: =$R134*Z$2 -> 302.8329427 | AA134: =$R134*AA$2 -> 605.6658854 | AB134: =$R134*AB$2 -> 2422.663542 | AC134: =$AC$2 -> 1 | AD134: =$AD$2 -> 453
P135: lentils | R135: 0.85 | S135: =$R135*S$2 -> 85 | T135: =$R135*T$2 -> 850 | U135: =$R135*U$2 -> 4.25 | V135: =$R135*V$2 -> 12.75 | W135: =$R135*W$2 -> 25.13750013 | X135: =$X$2 -> 28.3495 | Y135: =$R135*Y$2 -> 201.100001 | Z135: =$R135*Z$2 -> 402.200002 | AA135: =$R135*AA$2 -> 804.4000041 | AB135: =$R135*AB$2 -> 3217.600016 | AC135: =$AC$2 -> 1 | AD135: =$AD$2 -> 453
P136: macaroni, uncooked | R136: 0.49 | S136: =$R136*S$2 -> 49 | T136: =$R136*T$2 -> 490 | U136: =$R136*U$2 -> 2.45 | V136: =$R136*V$2 -> 7.35 | W136: =$R136*W$2 -> 14.49102949 | X136: =$X$2 -> 28.3495 | Y136: =$R136*Y$2 -> 115.9282359 | Z136: =$R136*Z$2 -> 231.8564718 | AA136: =$R136*AA$2 -> 463.7129435 | AB136: =$R136*AB$2 -> 1854.851774 | AC136: =$AC$2 -> 1 | AD136: =$AD$2 -> 453
P137: mace, ground | R137: 0.3533333333 | S137: =$R137*S$2 -> 35.33333333 | T137: =$R137*T$2 -> 353.3333333 | U137: =$R137*U$2 -> 1.766666667 | V137: =$R137*V$2 -> 5.3 | W137: =$R137*W$2 -> 10.44931378 | X137: =$X$2 -> 28.3495 | Y137: =$R137*Y$2 -> 83.59451023 | Z137: =$R137*Z$2 -> 167.1890205 | AA137: =$R137*AA$2 -> 334.3780409 | AB137: =$R137*AB$2 -> 1337.512164 | AC137: =$AC$2 -> 1 | AD137: =$AD$2 -> 453
P138: margarine | R138: 0.93 | S138: =$R138*S$2 -> 93 | T138: =$R138*T$2 -> 930 | U138: =$R138*U$2 -> 4.65 | V138: =$R138*V$2 -> 13.95 | W138: =$R138*W$2 -> 27.50338249 | X138: =$X$2 -> 28.3495 | Y138: =$R138*Y$2 -> 220.0270599 | Z138: =$R138*Z$2 -> 440.0541199 | AA138: =$R138*AA$2 -> 880.1082398 | AB138: =$R138*AB$2 -> 3520.432959 | AC138: =$AC$2 -> 1 | AD138: =$AD$2 -> 453
P139: marjoram, dried | R139: 0.1133333333 | S139: =$R139*S$2 -> 11.33333333 | T139: =$R139*T$2 -> 113.3333333 | U139: =$R139*U$2 -> 0.5666666667 | V139: =$R139*V$2 -> 1.7 | W139: =$R139*W$2 -> 3.351666684 | X139: =$X$2 -> 28.3495 | Y139: =$R139*Y$2 -> 26.81333347 | Z139: =$R139*Z$2 -> 53.62666694 | AA139: =$R139*AA$2 -> 107.2533339 | AB139: =$R139*AB$2 -> 429.0133355 | AC139: =$AC$2 -> 1 | AD139: =$AD$2 -> 453
P140: marshmallows, small | R140: 0.21 | S140: =$R140*S$2 -> 21 | T140: =$R140*T$2 -> 210 | U140: =$R140*U$2 -> 1.05 | V140: =$R140*V$2 -> 3.15 | W140: =$R140*W$2 -> 6.210441208 | X140: =$X$2 -> 28.3495 | Y140: =$R140*Y$2 -> 49.68352966 | Z140: =$R140*Z$2 -> 99.36705933 | AA140: =$R140*AA$2 -> 198.7341187 | AB140: =$R140*AB$2 -> 794.9364746 | AC140: =$AC$2 -> 1 | AD140: =$AD$2 -> 453
P141: mashed potatoes | R141: 0.89 | S141: =$R141*S$2 -> 89 | T141: =$R141*T$2 -> 890 | U141: =$R141*U$2 -> 4.45 | V141: =$R141*V$2 -> 13.35 | W141: =$R141*W$2 -> 26.32044131 | X141: =$X$2 -> 28.3495 | Y141: =$R141*Y$2 -> 210.5635305 | Z141: =$R141*Z$2 -> 421.127061 | AA141: =$R141*AA$2 -> 842.2541219 | AB141: =$R141*AB$2 -> 3369.016488 | AC141: =$AC$2 -> 1 | AD141: =$AD$2 -> 453
P142: mayonnaise | R142: 0.93 | S142: =$R142*S$2 -> 93 | T142: =$R142*T$2 -> 930 | U142: =$R142*U$2 -> 4.65 | V142: =$R142*V$2 -> 13.95 | W142: =$R142*W$2 -> 27.50338249 | X142: =$X$2 -> 28.3495 | Y142: =$R142*Y$2 -> 220.0270599 | Z142: =$R142*Z$2 -> 440.0541199 | AA142: =$R142*AA$2 -> 880.1082398 | AB142: =$R142*AB$2 -> 3520.432959 | AC142: =$AC$2 -> 1 | AD142: =$AD$2 -> 453
P143: milk | R143: 1 | S143: =$R143*S$2 -> 100 | T143: =$R143*T$2 -> 1000 | U143: =$R143*U$2 -> 5 | V143: =$R143*V$2 -> 15 | W143: =$R143*W$2 -> 29.57352956 | X143: =$X$2 -> 28.3495 | Y143: =$R143*Y$2 -> 236.5882365 | Z143: =$R143*Z$2 -> 473.176473 | AA143: =$R143*AA$2 -> 946.352946 | AB143: =$R143*AB$2 -> 3785.411784 | AC143: =$AC$2 -> 1 | AD143: =$AD$2 -> 453
P144: milk, evaporated | R144: 0.93 | S144: =$R144*S$2 -> 93 | T144: =$R144*T$2 -> 930 | U144: =$R144*U$2 -> 4.65 | V144: =$R144*V$2 -> 13.95 | W144: =$R144*W$2 -> 27.50338249 | X144: =$X$2 -> 28.3495 | Y144: =$R144*Y$2 -> 220.0270599 | Z144: =$R144*Z$2 -> 440.0541199 | AA144: =$R144*AA$2 -> 880.1082398 | AB144: =$R144*AB$2 -> 3520.432959 | AC144: =$AC$2 -> 1 | AD144: =$AD$2 -> 453
P145: milk, powdered | R145: 0.49 | S145: =$R145*S$2 -> 49 | T145: =$R145*T$2 -> 490 | U145: =$R145*U$2 -> 2.45 | V145: =$R145*V$2 -> 7.35 | W145: =$R145*W$2 -> 14.49102949 | X145: =$X$2 -> 28.3495 | Y145: =$R145*Y$2 -> 115.9282359 | Z145: =$R145*Z$2 -> 231.8564718 | AA145: =$R145*AA$2 -> 463.7129435 | AB145: =$R145*AB$2 -> 1854.851774 | AC145: =$AC$2 -> 1 | AD145: =$AD$2 -> 453
P146: millet flour | R146: 0.5029835877 | S146: =$R146*S$2 -> 50.29835877 | T146: =$R146*T$2 -> 502.9835877 | U146: =$R146*U$2 -> 2.514917938 | V146: =$R146*V$2 -> 7.544753815 | W146: =$R146*W$2 -> 14.875 | X146: =$X$2 -> 28.3495 | Y146: =$R146*Y$2 -> 119 | Z146: =$R146*Z$2 -> 238 | AA146: =$R146*AA$2 -> 476 | AB146: =$R146*AB$2 -> 1904 | AC146: =$AC$2 -> 1 | AD146: =$AD$2 -> 453
P147: molasses | R147: 1.45 | S147: =$R147*S$2 -> 145 | T147: =$R147*T$2 -> 1450 | U147: =$R147*U$2 -> 7.25 | V147: =$R147*V$2 -> 21.75 | W147: =$R147*W$2 -> 42.88161787 | X147: =$X$2 -> 28.3495 | Y147: =$R147*Y$2 -> 343.0529429 | Z147: =$R147*Z$2 -> 686.1058858 | AA147: =$R147*AA$2 -> 1372.211772 | AB147: =$R147*AB$2 -> 5488.847087 | AC147: =$AC$2 -> 1 | AD147: =$AD$2 -> 453
P148: mulberries, raw | R148: 0.5917453973 | S148: =$R148*S$2 -> 59.17453973 | T148: =$R148*T$2 -> 591.7453973 | U148: =$R148*U$2 -> 2.958726986 | V148: =$R148*V$2 -> 8.876180959 | W148: =$R148*W$2 -> 17.5 | X148: =$X$2 -> 28.3495 | Y148: =$R148*Y$2 -> 140 | Z148: =$R148*Z$2 -> 280 | AA148: =$R148*AA$2 -> 560 | AB148: =$R148*AB$2 -> 2240 | AC148: =$AC$2 -> 1 | AD148: =$AD$2 -> 453
P149: mushrooms, Chinese black | R149: 0.21 | S149: =$R149*S$2 -> 21 | T149: =$R149*T$2 -> 210 | U149: =$R149*U$2 -> 1.05 | V149: =$R149*V$2 -> 3.15 | W149: =$R149*W$2 -> 6.210441208 | X149: =$X$2 -> 28.3495 | Y149: =$R149*Y$2 -> 49.68352966 | Z149: =$R149*Z$2 -> 99.36705933 | AA149: =$R149*AA$2 -> 198.7341187 | AB149: =$R149*AB$2 -> 794.9364746 | AC149: =$AC$2 -> 1 | AD149: =$AD$2 -> 453
P150: mushrooms, chopped | R150: 0.32 | S150: =$R150*S$2 -> 32 | T150: =$R150*T$2 -> 320 | U150: =$R150*U$2 -> 1.6 | V150: =$R150*V$2 -> 4.8 | W150: =$R150*W$2 -> 9.46352946 | X150: =$X$2 -> 28.3495 | Y150: =$R150*Y$2 -> 75.70823568 | Z150: =$R150*Z$2 -> 151.4164714 | AA150: =$R150*AA$2 -> 302.8329427 | AB150: =$R150*AB$2 -> 1211.331771 | AC150: =$AC$2 -> 1 | AD150: =$AD$2 -> 453
P151: mushrooms, sliced | R151: 0.28 | S151: =$R151*S$2 -> 28 | T151: =$R151*T$2 -> 280 | U151: =$R151*U$2 -> 1.4 | V151: =$R151*V$2 -> 4.2 | W151: =$R151*W$2 -> 8.280588277 | X151: =$X$2 -> 28.3495 | Y151: =$R151*Y$2 -> 66.24470622 | Z151: =$R151*Z$2 -> 132.4894124 | AA151: =$R151*AA$2 -> 264.9788249 | AB151: =$R151*AB$2 -> 1059.9153 | AC151: =$AC$2 -> 1 | AD151: =$AD$2 -> 453
P152: mushrooms, whole | R152: 0.25 | S152: =$R152*S$2 -> 25 | T152: =$R152*T$2 -> 250 | U152: =$R152*U$2 -> 1.25 | V152: =$R152*V$2 -> 3.75 | W152: =$R152*W$2 -> 7.393382391 | X152: =$X$2 -> 28.3495 | Y152: =$R152*Y$2 -> 59.14705912 | Z152: =$R152*Z$2 -> 118.2941182 | AA152: =$R152*AA$2 -> 236.5882365 | AB152: =$R152*AB$2 -> 946.352946 | AC152: =$AC$2 -> 1 | AD152: =$AD$2 -> 453
P153: mustard seed | R153: 0.64 | S153: =$R153*S$2 -> 64 | T153: =$R153*T$2 -> 640 | U153: =$R153*U$2 -> 3.2 | V153: =$R153*V$2 -> 9.6 | W153: =$R153*W$2 -> 18.92705892 | X153: =$X$2 -> 28.3495 | Y153: =$R153*Y$2 -> 151.4164714 | Z153: =$R153*Z$2 -> 302.8329427 | AA153: =$R153*AA$2 -> 605.6658854 | AB153: =$R153*AB$2 -> 2422.663542 | AC153: =$AC$2 -> 1 | AD153: =$AD$2 -> 453
P154: mustard seed, ground | R154: 0.42 | S154: =$R154*S$2 -> 42 | T154: =$R154*T$2 -> 420 | U154: =$R154*U$2 -> 2.1 | V154: =$R154*V$2 -> 6.3 | W154: =$R154*W$2 -> 12.42088242 | X154: =$X$2 -> 28.3495 | Y154: =$R154*Y$2 -> 99.36705933 | Z154: =$R154*Z$2 -> 198.7341187 | AA154: =$R154*AA$2 -> 397.4682373 | AB154: =$R154*AB$2 -> 1589.872949 | AC154: =$AC$2 -> 1 | AD154: =$AD$2 -> 453
P155: mustard, dry | R155: 0.49 | S155: =$R155*S$2 -> 49 | T155: =$R155*T$2 -> 490 | U155: =$R155*U$2 -> 2.45 | V155: =$R155*V$2 -> 7.35 | W155: =$R155*W$2 -> 14.49102949 | X155: =$X$2 -> 28.3495 | Y155: =$R155*Y$2 -> 115.9282359 | Z155: =$R155*Z$2 -> 231.8564718 | AA155: =$R155*AA$2 -> 463.7129435 | AB155: =$R155*AB$2 -> 1854.851774 | AC155: =$AC$2 -> 1 | AD155: =$AD$2 -> 453
P156: mustard, prepared | R156: 1.06 | S156: =$R156*S$2 -> 106 | T156: =$R156*T$2 -> 1060 | U156: =$R156*U$2 -> 5.3 | V156: =$R156*V$2 -> 15.9 | W156: =$R156*W$2 -> 31.34794134 | X156: =$X$2 -> 28.3495 | Y156: =$R156*Y$2 -> 250.7835307 | Z156: =$R156*Z$2 -> 501.5670614 | AA156: =$R156*AA$2 -> 1003.134123 | AB156: =$R156*AB$2 -> 4012.536491 | AC156: =$AC$2 -> 1 | AD156: =$AD$2 -> 453
P157: nutmeg, ground | R157: 0.4666666667 | S157: =$R157*S$2 -> 46.66666667 | T157: =$R157*T$2 -> 466.6666667 | U157: =$R157*U$2 -> 2.333333333 | V157: =$R157*V$2 -> 7 | W157: =$R157*W$2 -> 13.80098046 | X157: =$X$2 -> 28.3495 | Y157: =$R157*Y$2 -> 110.4078437 | Z157: =$R157*Z$2 -> 220.8156874 | AA157: =$R157*AA$2 -> 441.6313748 | AB157: =$R157*AB$2 -> 1766.525499 | AC157: =$AC$2 -> 1 | AD157: =$AD$2 -> 453
P158: oatmeal, uncooked | R158: 0.34 | S158: =$R158*S$2 -> 34 | T158: =$R158*T$2 -> 340 | U158: =$R158*U$2 -> 1.7 | V158: =$R158*V$2 -> 5.1 | W158: =$R158*W$2 -> 10.05500005 | X158: =$X$2 -> 28.3495 | Y158: =$R158*Y$2 -> 80.44000041 | Z158: =$R158*Z$2 -> 160.8800008 | AA158: =$R158*AA$2 -> 321.7600016 | AB158: =$R158*AB$2 -> 1287.040007 | AC158: =$AC$2 -> 1 | AD158: =$AD$2 -> 453
P159: oats, rolled | R159: 0.34 | S159: =$R159*S$2 -> 34 | T159: =$R159*T$2 -> 340 | U159: =$R159*U$2 -> 1.7 | V159: =$R159*V$2 -> 5.1 | W159: =$R159*W$2 -> 10.05500005 | X159: =$X$2 -> 28.3495 | Y159: =$R159*Y$2 -> 80.44000041 | Z159: =$R159*Z$2 -> 160.8800008 | AA159: =$R159*AA$2 -> 321.7600016 | AB159: =$R159*AB$2 -> 1287.040007 | AC159: =$AC$2 -> 1 | AD159: =$AD$2 -> 453
P160: oats, steel-cut | R160: 0.68 | S160: =$R160*S$2 -> 68 | T160: =$R160*T$2 -> 680 | U160: =$R160*U$2 -> 3.4 | V160: =$R160*V$2 -> 10.2 | W160: =$R160*W$2 -> 20.1100001 | X160: =$X$2 -> 28.3495 | Y160: =$R160*Y$2 -> 160.8800008 | Z160: =$R160*Z$2 -> 321.7600016 | AA160: =$R160*AA$2 -> 643.5200033 | AB160: =$R160*AB$2 -> 2574.080013 | AC160: =$AC$2 -> 1 | AD160: =$AD$2 -> 453
P161: oil, vegetable | R161: 0.89 | S161: =$R161*S$2 -> 89 | T161: =$R161*T$2 -> 890 | U161: =$R161*U$2 -> 4.45 | V161: =$R161*V$2 -> 13.35 | W161: =$R161*W$2 -> 26.32044131 | X161: =$X$2 -> 28.3495 | Y161: =$R161*Y$2 -> 210.5635305 | Z161: =$R161*Z$2 -> 421.127061 | AA161: =$R161*AA$2 -> 842.2541219 | AB161: =$R161*AB$2 -> 3369.016488 | AC161: =$AC$2 -> 1 | AD161: =$AD$2 -> 453
P162: olive oil | R162: 0.81 | S162: =$R162*S$2 -> 81 | T162: =$R162*T$2 -> 810 | U162: =$R162*U$2 -> 4.05 | V162: =$R162*V$2 -> 12.15 | W162: =$R162*W$2 -> 23.95455895 | X162: =$X$2 -> 28.3495 | Y162: =$R162*Y$2 -> 191.6364716 | Z162: =$R162*Z$2 -> 383.2729431 | AA162: =$R162*AA$2 -> 766.5458863 | AB162: =$R162*AB$2 -> 3066.183545 | AC162: =$AC$2 -> 1 | AD162: =$AD$2 -> 453
P163: olives, chopped | R163: 0.76 | S163: =$R163*S$2 -> 76 | T163: =$R163*T$2 -> 760 | U163: =$R163*U$2 -> 3.8 | V163: =$R163*V$2 -> 11.4 | W163: =$R163*W$2 -> 22.47588247 | X163: =$X$2 -> 28.3495 | Y163: =$R163*Y$2 -> 179.8070597 | Z163: =$R163*Z$2 -> 359.6141195 | AA163: =$R163*AA$2 -> 719.228239 | AB163: =$R163*AB$2 -> 2876.912956 | AC163: =$AC$2 -> 1 | AD163: =$AD$2 -> 453
P164: onion, chopped | R164: 0.64 | S164: =$R164*S$2 -> 64 | T164: =$R164*T$2 -> 640 | U164: =$R164*U$2 -> 3.2 | V164: =$R164*V$2 -> 9.6 | W164: =$R164*W$2 -> 18.92705892 | X164: =$X$2 -> 28.3495 | Y164: =$R164*Y$2 -> 151.4164714 | Z164: =$R164*Z$2 -> 302.8329427 | AA164: =$R164*AA$2 -> 605.6658854 | AB164: =$R164*AB$2 -> 2422.663542 | AC164: =$AC$2 -> 1 | AD164: =$AD$2 -> 453
P165: onion, minced | R165: 0.85 | S165: =$R165*S$2 -> 85 | T165: =$R165*T$2 -> 850 | U165: =$R165*U$2 -> 4.25 | V165: =$R165*V$2 -> 12.75 | W165: =$R165*W$2 -> 25.13750013 | X165: =$X$2 -> 28.3495 | Y165: =$R165*Y$2 -> 201.100001 | Z165: =$R165*Z$2 -> 402.200002 | AA165: =$R165*AA$2 -> 804.4000041 | AB165: =$R165*AB$2 -> 3217.600016 | AC165: =$AC$2 -> 1 | AD165: =$AD$2 -> 453
P166: onion, sliced | R166: 0.55 | S166: =$R166*S$2 -> 55 | T166: =$R166*T$2 -> 550 | U166: =$R166*U$2 -> 2.75 | V166: =$R166*V$2 -> 8.25 | W166: =$R166*W$2 -> 16.26544126 | X166: =$X$2 -> 28.3495 | Y166: =$R166*Y$2 -> 130.1235301 | Z166: =$R166*Z$2 -> 260.2470602 | AA166: =$R166*AA$2 -> 520.4941203 | AB166: =$R166*AB$2 -> 2081.976481 | AC166: =$AC$2 -> 1 | AD166: =$AD$2 -> 453
P167: orange rind, grated | R167: 0.38 | S167: =$R167*S$2 -> 38 | T167: =$R167*T$2 -> 380 | U167: =$R167*U$2 -> 1.9 | V167: =$R167*V$2 -> 5.7 | W167: =$R167*W$2 -> 11.23794123 | X167: =$X$2 -> 28.3495 | Y167: =$R167*Y$2 -> 89.90352987 | Z167: =$R167*Z$2 -> 179.8070597 | AA167: =$R167*AA$2 -> 359.6141195 | AB167: =$R167*AB$2 -> 1438.456478 | AC167: =$AC$2 -> 1 | AD167: =$AD$2 -> 453
P168: oregano, dried, ground | R168: 0.36 | S168: =$R168*S$2 -> 36 | T168: =$R168*T$2 -> 360 | U168: =$R168*U$2 -> 1.8 | V168: =$R168*V$2 -> 5.4 | W168: =$R168*W$2 -> 10.64647064 | X168: =$X$2 -> 28.3495 | Y168: =$R168*Y$2 -> 85.17176514 | Z168: =$R168*Z$2 -> 170.3435303 | AA168: =$R168*AA$2 -> 340.6870606 | AB168: =$R168*AB$2 -> 1362.748242 | AC168: =$AC$2 -> 1 | AD168: =$AD$2 -> 453
P169: oregano, dried, leaves | R169: 0.2 | S169: =$R169*S$2 -> 20 | T169: =$R169*T$2 -> 200 | U169: =$R169*U$2 -> 1 | V169: =$R169*V$2 -> 3 | W169: =$R169*W$2 -> 5.914705913 | X169: =$X$2 -> 28.3495 | Y169: =$R169*Y$2 -> 47.3176473 | Z169: =$R169*Z$2 -> 94.6352946 | AA169: =$R169*AA$2 -> 189.2705892 | AB169: =$R169*AB$2 -> 757.0823568 | AC169: =$AC$2 -> 1 | AD169: =$AD$2 -> 453
P170: oreo cookies, crushed | R170: 0.51 | S170: =$R170*S$2 -> 51 | T170: =$R170*T$2 -> 510 | U170: =$R170*U$2 -> 2.55 | V170: =$R170*V$2 -> 7.65 | W170: =$R170*W$2 -> 15.08250008 | X170: =$X$2 -> 28.3495 | Y170: =$R170*Y$2 -> 120.6600006 | Z170: =$R170*Z$2 -> 241.3200012 | AA170: =$R170*AA$2 -> 482.6400025 | AB170: =$R170*AB$2 -> 1930.56001 | AC170: =$AC$2 -> 1 | AD170: =$AD$2 -> 453
P171: paprika | R171: 0.49 | S171: =$R171*S$2 -> 49 | T171: =$R171*T$2 -> 490 | U171: =$R171*U$2 -> 2.45 | V171: =$R171*V$2 -> 7.35 | W171: =$R171*W$2 -> 14.49102949 | X171: =$X$2 -> 28.3495 | Y171: =$R171*Y$2 -> 115.9282359 | Z171: =$R171*Z$2 -> 231.8564718 | AA171: =$R171*AA$2 -> 463.7129435 | AB171: =$R171*AB$2 -> 1854.851774 | AC171: =$AC$2 -> 1 | AD171: =$AD$2 -> 453
P172: paprika powder | R172: 0.4533333333 | S172: =$R172*S$2 -> 45.33333333 | T172: =$R172*T$2 -> 453.3333333 | U172: =$R172*U$2 -> 2.266666667 | V172: =$R172*V$2 -> 6.8 | W172: =$R172*W$2 -> 13.40666673 | X172: =$X$2 -> 28.3495 | Y172: =$R172*Y$2 -> 107.2533339 | Z172: =$R172*Z$2 -> 214.5066678 | AA172: =$R172*AA$2 -> 429.0133355 | AB172: =$R172*AB$2 -> 1716.053342 | AC172: =$AC$2 -> 1 | AD172: =$AD$2 -> 453
P173: parsley, dried | R173: 0.1066666667 | S173: =$R173*S$2 -> 10.66666667 | T173: =$R173*T$2 -> 106.6666667 | U173: =$R173*U$2 -> 0.5333333333 | V173: =$R173*V$2 -> 1.6 | W173: =$R173*W$2 -> 3.15450982 | X173: =$X$2 -> 28.3495 | Y173: =$R173*Y$2 -> 25.23607856 | Z173: =$R173*Z$2 -> 50.47215712 | AA173: =$R173*AA$2 -> 100.9443142 | AB173: =$R173*AB$2 -> 403.777257 | AC173: =$AC$2 -> 1 | AD173: =$AD$2 -> 453
P174: parsley, fresh | R174: 0.17 | S174: =$R174*S$2 -> 17 | T174: =$R174*T$2 -> 170 | U174: =$R174*U$2 -> 0.85 | V174: =$R174*V$2 -> 2.55 | W174: =$R174*W$2 -> 5.027500026 | X174: =$X$2 -> 28.3495 | Y174: =$R174*Y$2 -> 40.22000021 | Z174: =$R174*Z$2 -> 80.44000041 | AA174: =$R174*AA$2 -> 160.8800008 | AB174: =$R174*AB$2 -> 643.5200033 | AC174: =$AC$2 -> 1 | AD174: =$AD$2 -> 453
P175: pasta, egg noodles | R175: 0.38 | S175: =$R175*S$2 -> 38 | T175: =$R175*T$2 -> 380 | U175: =$R175*U$2 -> 1.9 | V175: =$R175*V$2 -> 5.7 | W175: =$R175*W$2 -> 11.23794123 | X175: =$X$2 -> 28.3495 | Y175: =$R175*Y$2 -> 89.90352987 | Z175: =$R175*Z$2 -> 179.8070597 | AA175: =$R175*AA$2 -> 359.6141195 | AB175: =$R175*AB$2 -> 1438.456478 | AC175: =$AC$2 -> 1 | AD175: =$AD$2 -> 453
P176: pasta, macaroni | R176: 0.49 | S176: =$R176*S$2 -> 49 | T176: =$R176*T$2 -> 490 | U176: =$R176*U$2 -> 2.45 | V176: =$R176*V$2 -> 7.35 | W176: =$R176*W$2 -> 14.49102949 | X176: =$X$2 -> 28.3495 | Y176: =$R176*Y$2 -> 115.9282359 | Z176: =$R176*Z$2 -> 231.8564718 | AA176: =$R176*AA$2 -> 463.7129435 | AB176: =$R176*AB$2 -> 1854.851774 | AC176: =$AC$2 -> 1 | AD176: =$AD$2 -> 453
P177: peanut butter | R177: 0.76 | S177: =$R177*S$2 -> 76 | T177: =$R177*T$2 -> 760 | U177: =$R177*U$2 -> 3.8 | V177: =$R177*V$2 -> 11.4 | W177: =$R177*W$2 -> 22.47588247 | X177: =$X$2 -> 28.3495 | Y177: =$R177*Y$2 -> 179.8070597 | Z177: =$R177*Z$2 -> 359.6141195 | AA177: =$R177*AA$2 -> 719.228239 | AB177: =$R177*AB$2 -> 2876.912956 | AC177: =$AC$2 -> 1 | AD177: =$AD$2 -> 453
P178: peanuts | R178: 0.6171059143 | S178: =$R178*S$2 -> 61.71059143 | T178: =$R178*T$2 -> 617.1059143 | U178: =$R178*U$2 -> 3.085529572 | V178: =$R178*V$2 -> 9.256588715 | W178: =$R178*W$2 -> 18.25 | X178: =$X$2 -> 28.3495 | Y178: =$R178*Y$2 -> 146 | Z178: =$R178*Z$2 -> 292 | AA178: =$R178*AA$2 -> 584 | AB178: =$R178*AB$2 -> 2336 | AC178: =$AC$2 -> 1 | AD178: =$AD$2 -> 453
P179: peanuts, chopped | R179: 0.68 | S179: =$R179*S$2 -> 68 | T179: =$R179*T$2 -> 680 | U179: =$R179*U$2 -> 3.4 | V179: =$R179*V$2 -> 10.2 | W179: =$R179*W$2 -> 20.1100001 | X179: =$X$2 -> 28.3495 | Y179: =$R179*Y$2 -> 160.8800008 | Z179: =$R179*Z$2 -> 321.7600016 | AA179: =$R179*AA$2 -> 643.5200033 | AB179: =$R179*AB$2 -> 2574.080013 | AC179: =$AC$2 -> 1 | AD179: =$AD$2 -> 453
P180: peanuts, oil roasted | R180: 0.64 | S180: =$R180*S$2 -> 64 | T180: =$R180*T$2 -> 640 | U180: =$R180*U$2 -> 3.2 | V180: =$R180*V$2 -> 9.6 | W180: =$R180*W$2 -> 18.92705892 | X180: =$X$2 -> 28.3495 | Y180: =$R180*Y$2 -> 151.4164714 | Z180: =$R180*Z$2 -> 302.8329427 | AA180: =$R180*AA$2 -> 605.6658854 | AB180: =$R180*AB$2 -> 2422.663542 | AC180: =$AC$2 -> 1 | AD180: =$AD$2 -> 453
P181: peas, green, raw | R181: 0.6128791615 | S181: =$R181*S$2 -> 61.28791615 | T181: =$R181*T$2 -> 612.8791615 | U181: =$R181*U$2 -> 3.064395807 | V181: =$R181*V$2 -> 9.193187422 | W181: =$R181*W$2 -> 18.125 | X181: =$X$2 -> 28.3495 | Y181: =$R181*Y$2 -> 145 | Z181: =$R181*Z$2 -> 290 | AA181: =$R181*AA$2 -> 580 | AB181: =$R181*AB$2 -> 2320 | AC181: =$AC$2 -> 1 | AD181: =$AD$2 -> 453
P182: peas, uncooked | R182: 0.64 | S182: =$R182*S$2 -> 64 | T182: =$R182*T$2 -> 640 | U182: =$R182*U$2 -> 3.2 | V182: =$R182*V$2 -> 9.6 | W182: =$R182*W$2 -> 18.92705892 | X182: =$X$2 -> 28.3495 | Y182: =$R182*Y$2 -> 151.4164714 | Z182: =$R182*Z$2 -> 302.8329427 | AA182: =$R182*AA$2 -> 605.6658854 | AB182: =$R182*AB$2 -> 2422.663542 | AC182: =$AC$2 -> 1 | AD182: =$AD$2 -> 453
P183: pecans | R183: 0.4649428122 | S183: =$R183*S$2 -> 46.49428122 | T183: =$R183*T$2 -> 464.9428122 | U183: =$R183*U$2 -> 2.324714061 | V183: =$R183*V$2 -> 6.974142182 | W183: =$R183*W$2 -> 13.75 | X183: =$X$2 -> 28.3495 | Y183: =$R183*Y$2 -> 110 | Z183: =$R183*Z$2 -> 220 | AA183: =$R183*AA$2 -> 440 | AB183: =$R183*AB$2 -> 1760 | AC183: =$AC$2 -> 1 | AD183: =$AD$2 -> 453
P184: pecans, chopped | R184: 0.51 | S184: =$R184*S$2 -> 51 | T184: =$R184*T$2 -> 510 | U184: =$R184*U$2 -> 2.55 | V184: =$R184*V$2 -> 7.65 | W184: =$R184*W$2 -> 15.08250008 | X184: =$X$2 -> 28.3495 | Y184: =$R184*Y$2 -> 120.6600006 | Z184: =$R184*Z$2 -> 241.3200012 | AA184: =$R184*AA$2 -> 482.6400025 | AB184: =$R184*AB$2 -> 1930.56001 | AC184: =$AC$2 -> 1 | AD184: =$AD$2 -> 453
P185: pecans, ground | R185: 0.42 | S185: =$R185*S$2 -> 42 | T185: =$R185*T$2 -> 420 | U185: =$R185*U$2 -> 2.1 | V185: =$R185*V$2 -> 6.3 | W185: =$R185*W$2 -> 12.42088242 | X185: =$X$2 -> 28.3495 | Y185: =$R185*Y$2 -> 99.36705933 | Z185: =$R185*Z$2 -> 198.7341187 | AA185: =$R185*AA$2 -> 397.4682373 | AB185: =$R185*AB$2 -> 1589.872949 | AC185: =$AC$2 -> 1 | AD185: =$AD$2 -> 453
P186: pecans, shelled | R186: 0.51 | S186: =$R186*S$2 -> 51 | T186: =$R186*T$2 -> 510 | U186: =$R186*U$2 -> 2.55 | V186: =$R186*V$2 -> 7.65 | W186: =$R186*W$2 -> 15.08250008 | X186: =$X$2 -> 28.3495 | Y186: =$R186*Y$2 -> 120.6600006 | Z186: =$R186*Z$2 -> 241.3200012 | AA186: =$R186*AA$2 -> 482.6400025 | AB186: =$R186*AB$2 -> 1930.56001 | AC186: =$AC$2 -> 1 | AD186: =$AD$2 -> 453
P187: pepper, black, ground | R187: 0.46 | S187: =$R187*S$2 -> 46 | T187: =$R187*T$2 -> 460 | U187: =$R187*U$2 -> 2.3 | V187: =$R187*V$2 -> 6.9 | W187: =$R187*W$2 -> 13.6038236 | X187: =$X$2 -> 28.3495 | Y187: =$R187*Y$2 -> 108.8305888 | Z187: =$R187*Z$2 -> 217.6611776 | AA187: =$R187*AA$2 -> 435.3223552 | AB187: =$R187*AB$2 -> 1741.289421 | AC187: =$AC$2 -> 1 | AD187: =$AD$2 -> 453
P188: pepper, white, ground | R188: 0.4733333333 | S188: =$R188*S$2 -> 47.33333333 | T188: =$R188*T$2 -> 473.3333333 | U188: =$R188*U$2 -> 2.366666667 | V188: =$R188*V$2 -> 7.1 | W188: =$R188*W$2 -> 13.99813733 | X188: =$X$2 -> 28.3495 | Y188: =$R188*Y$2 -> 111.9850986 | Z188: =$R188*Z$2 -> 223.9701972 | AA188: =$R188*AA$2 -> 447.9403944 | AB188: =$R188*AB$2 -> 1791.761578 | AC188: =$AC$2 -> 1 | AD188: =$AD$2 -> 453
P189: peppercorns, black | R189: 0.57 | S189: =$R189*S$2 -> 57 | T189: =$R189*T$2 -> 570 | U189: =$R189*U$2 -> 2.85 | V189: =$R189*V$2 -> 8.55 | W189: =$R189*W$2 -> 16.85691185 | X189: =$X$2 -> 28.3495 | Y189: =$R189*Y$2 -> 134.8552948 | Z189: =$R189*Z$2 -> 269.7105896 | AA189: =$R189*AA$2 -> 539.4211792 | AB189: =$R189*AB$2 -> 2157.684717 | AC189: =$AC$2 -> 1 | AD189: =$AD$2 -> 453
P190: peppercorns, white | R190: 0.64 | S190: =$R190*S$2 -> 64 | T190: =$R190*T$2 -> 640 | U190: =$R190*U$2 -> 3.2 | V190: =$R190*V$2 -> 9.6 | W190: =$R190*W$2 -> 18.92705892 | X190: =$X$2 -> 28.3495 | Y190: =$R190*Y$2 -> 151.4164714 | Z190: =$R190*Z$2 -> 302.8329427 | AA190: =$R190*AA$2 -> 605.6658854 | AB190: =$R190*AB$2 -> 2422.663542 | AC190: =$AC$2 -> 1 | AD190: =$AD$2 -> 453
P191: peppers, chopped chili | R191: 0.72 | S191: =$R191*S$2 -> 72 | T191: =$R191*T$2 -> 720 | U191: =$R191*U$2 -> 3.6 | V191: =$R191*V$2 -> 10.8 | W191: =$R191*W$2 -> 21.29294128 | X191: =$X$2 -> 28.3495 | Y191: =$R191*Y$2 -> 170.3435303 | Z191: =$R191*Z$2 -> 340.6870606 | AA191: =$R191*AA$2 -> 681.3741211 | AB191: =$R191*AB$2 -> 2725.496484 | AC191: =$AC$2 -> 1 | AD191: =$AD$2 -> 453
P192: pignolias (pine nuts) | R192: 0.53 | S192: =$R192*S$2 -> 53 | T192: =$R192*T$2 -> 530 | U192: =$R192*U$2 -> 2.65 | V192: =$R192*V$2 -> 7.95 | W192: =$R192*W$2 -> 15.67397067 | X192: =$X$2 -> 28.3495 | Y192: =$R192*Y$2 -> 125.3917653 | Z192: =$R192*Z$2 -> 250.7835307 | AA192: =$R192*AA$2 -> 501.5670614 | AB192: =$R192*AB$2 -> 2006.268246 | AC192: =$AC$2 -> 1 | AD192: =$AD$2 -> 453
P193: pistachio nuts, raw | R193: 0.519890599 | S193: =$R193*S$2 -> 51.9890599 | T193: =$R193*T$2 -> 519.890599 | U193: =$R193*U$2 -> 2.599452995 | V193: =$R193*V$2 -> 7.798358986 | W193: =$R193*W$2 -> 15.375 | X193: =$X$2 -> 28.3495 | Y193: =$R193*Y$2 -> 123 | Z193: =$R193*Z$2 -> 246 | AA193: =$R193*AA$2 -> 492 | AB193: =$R193*AB$2 -> 1968 | AC193: =$AC$2 -> 1 | AD193: =$AD$2 -> 453
P194: poppy seeds | R194: 0.58 | S194: =$R194*S$2 -> 58 | T194: =$R194*T$2 -> 580 | U194: =$R194*U$2 -> 2.9 | V194: =$R194*V$2 -> 8.7 | W194: =$R194*W$2 -> 17.15264715 | X194: =$X$2 -> 28.3495 | Y194: =$R194*Y$2 -> 137.2211772 | Z194: =$R194*Z$2 -> 274.4423543 | AA194: =$R194*AA$2 -> 548.8847087 | AB194: =$R194*AB$2 -> 2195.538835 | AC194: =$AC$2 -> 1 | AD194: =$AD$2 -> 453
P195: potato flour | R195: 0.676280454 | S195: =$R195*S$2 -> 67.6280454 | T195: =$R195*T$2 -> 676.280454 | U195: =$R195*U$2 -> 3.38140227 | V195: =$R195*V$2 -> 10.14420681 | W195: =$R195*W$2 -> 20 | X195: =$X$2 -> 28.3495 | Y195: =$R195*Y$2 -> 160 | Z195: =$R195*Z$2 -> 320 | AA195: =$R195*AA$2 -> 640 | AB195: =$R195*AB$2 -> 2560 | AC195: =$AC$2 -> 1 | AD195: =$AD$2 -> 453
P196: potatoes, cooked diced | R196: 0.85 | S196: =$R196*S$2 -> 85 | T196: =$R196*T$2 -> 850 | U196: =$R196*U$2 -> 4.25 | V196: =$R196*V$2 -> 12.75 | W196: =$R196*W$2 -> 25.13750013 | X196: =$X$2 -> 28.3495 | Y196: =$R196*Y$2 -> 201.100001 | Z196: =$R196*Z$2 -> 402.200002 | AA196: =$R196*AA$2 -> 804.4000041 | AB196: =$R196*AB$2 -> 3217.600016 | AC196: =$AC$2 -> 1 | AD196: =$AD$2 -> 453
P197: potatoes, mashed | R197: 0.89 | S197: =$R197*S$2 -> 89 | T197: =$R197*T$2 -> 890 | U197: =$R197*U$2 -> 4.45 | V197: =$R197*V$2 -> 13.35 | W197: =$R197*W$2 -> 26.32044131 | X197: =$X$2 -> 28.3495 | Y197: =$R197*Y$2 -> 210.5635305 | Z197: =$R197*Z$2 -> 421.127061 | AA197: =$R197*AA$2 -> 842.2541219 | AB197: =$R197*AB$2 -> 3369.016488 | AC197: =$AC$2 -> 1 | AD197: =$AD$2 -> 453
P198: potatoes, sliced raw | R198: 0.76 | S198: =$R198*S$2 -> 76 | T198: =$R198*T$2 -> 760 | U198: =$R198*U$2 -> 3.8 | V198: =$R198*V$2 -> 11.4 | W198: =$R198*W$2 -> 22.47588247 | X198: =$X$2 -> 28.3495 | Y198: =$R198*Y$2 -> 179.8070597 | Z198: =$R198*Z$2 -> 359.6141195 | AA198: =$R198*AA$2 -> 719.228239 | AB198: =$R198*AB$2 -> 2876.912956 | AC198: =$AC$2 -> 1 | AD198: =$AD$2 -> 453
P199: pumpkin pie spice | R199: 0.3733333333 | S199: =$R199*S$2 -> 37.33333333 | T199: =$R199*T$2 -> 373.3333333 | U199: =$R199*U$2 -> 1.866666667 | V199: =$R199*V$2 -> 5.6 | W199: =$R199*W$2 -> 11.04078437 | X199: =$X$2 -> 28.3495 | Y199: =$R199*Y$2 -> 88.32627496 | Z199: =$R199*Z$2 -> 176.6525499 | AA199: =$R199*AA$2 -> 353.3050998 | AB199: =$R199*AB$2 -> 1413.220399 | AC199: =$AC$2 -> 1 | AD199: =$AD$2 -> 453
P200: pumpkin, cooked | R200: 0.76 | S200: =$R200*S$2 -> 76 | T200: =$R200*T$2 -> 760 | U200: =$R200*U$2 -> 3.8 | V200: =$R200*V$2 -> 11.4 | W200: =$R200*W$2 -> 22.47588247 | X200: =$X$2 -> 28.3495 | Y200: =$R200*Y$2 -> 179.8070597 | Z200: =$R200*Z$2 -> 359.6141195 | AA200: =$R200*AA$2 -> 719.228239 | AB200: =$R200*AB$2 -> 2876.912956 | AC200: =$AC$2 -> 1 | AD200: =$AD$2 -> 453
... 78 more rows
